,Portfolio,Expense Area,Cost Centre,Expense Type,Account Code,Amount,Supplier Name,SupplierId,Pay Date,Transaction No.
INSERTED DETAIL,Resources & Corporate Governance ,WSU Depot,WDP00,Messing Facilities,0332,239.35,Arco Limited,100015,03/07/2014,10203385
INSERTED DETAIL,Resources & Corporate Governance ,Toilet Cleaning,WBC01,Personal Protective Clothing,0340,2.90,Arco Limited,100015,03/07/2014,10203385
INSERTED DETAIL,Resources & Corporate Governance ,Grounds Maintenance,WGM00,Personal Protective Clothing,0340,30.79,Arco Limited,100015,03/07/2014,10203385
INSERTED DETAIL,Resources & Corporate Governance ,Highways,WHG00,Personal Protective Clothing,0340,4.40,Arco Limited,100015,03/07/2014,10203385
INSERTED DETAIL,Resources & Corporate Governance,Housing Maintenance,WHM00,Personal Protective Clothing,0340,86.32,Arco Limited,100015,03/07/2014,10203385
INSERTED DETAIL,Resources & Corporate Governance ,Street Cleansing,WSC00,Personal Protective Clothing,0340,35.18,Arco Limited,100015,03/07/2014,10203385
INSERTED DETAIL,Resources & Corporate Governance ,Garage Internal,WVR01,Personal Protective Clothing,0340,5.87,Arco Limited,100015,03/07/2014,10203385
INSERTED DETAIL,Resources & Corporate Governance ,Domestic Waste Collection,WWC00,Personal Protective Clothing,0340,61.57,Arco Limited,100015,03/07/2014,10203385
INSERTED DETAIL,Resources & Corporate Governance ,Trade Waste Collection,WWC01,Personal Protective Clothing,0340,5.87,Arco Limited,100015,03/07/2014,10203385
INSERTED DETAIL,Resources & Corporate Governance,Housing Maintenance,WHM00,Materials,0303,159.70,Arco Limited,100015,03/07/2014,10203772
INSERTED DETAIL,Resources & Corporate Governance ,Street Cleansing,WSC00,Materials,0303,159.79,Arco Limited,100015,03/07/2014,10203772
INSERTED DETAIL,Resources & Corporate Governance ,Toilet Cleaning,WBC01,Personal Protective Clothing,0340,5.08,Arco Limited,100015,03/07/2014,10203772
INSERTED DETAIL,Resources & Corporate Governance ,Grounds Maintenance,WGM00,Personal Protective Clothing,0340,53.45,Arco Limited,100015,03/07/2014,10203772
INSERTED DETAIL,Resources & Corporate Governance ,Highways,WHG00,Personal Protective Clothing,0340,7.64,Arco Limited,100015,03/07/2014,10203772
INSERTED DETAIL,Resources & Corporate Governance ,Street Cleansing,WSC00,Personal Protective Clothing,0340,61.09,Arco Limited,100015,03/07/2014,10203772
INSERTED DETAIL,Resources & Corporate Governance ,Garage Internal,WVR01,Personal Protective Clothing,0340,10.18,Arco Limited,100015,03/07/2014,10203772
INSERTED DETAIL,Resources & Corporate Governance ,Domestic Waste Collection,WWC00,Personal Protective Clothing,0340,106.90,Arco Limited,100015,03/07/2014,10203772
INSERTED DETAIL,Resources & Corporate Governance ,Trade Waste Collection,WWC01,Personal Protective Clothing,0340,10.18,Arco Limited,100015,03/07/2014,10203772
INSERTED DETAIL,Resources & Corporate Governance ,Toilet Cleaning,WBC01,Personal Protective Clothing,0340,8.05,Arco Limited,100015,24/07/2014,10204510
INSERTED DETAIL,Resources & Corporate Governance ,Grounds Maintenance,WGM00,Personal Protective Clothing,0340,84.65,Arco Limited,100015,24/07/2014,10204510
INSERTED DETAIL,Resources & Corporate Governance ,Highways,WHG00,Personal Protective Clothing,0340,12.10,Arco Limited,100015,24/07/2014,10204510
INSERTED DETAIL,Resources & Corporate Governance,Housing Maintenance,WHM00,Personal Protective Clothing,0340,43.16,Arco Limited,100015,24/07/2014,10204510
INSERTED DETAIL,Resources & Corporate Governance ,Street Cleansing,WSC00,Personal Protective Clothing,0340,96.77,Arco Limited,100015,24/07/2014,10204510
INSERTED DETAIL,Resources & Corporate Governance ,Garage Internal,WVR01,Personal Protective Clothing,0340,16.13,Arco Limited,100015,24/07/2014,10204510
INSERTED DETAIL,Resources & Corporate Governance ,Domestic Waste Collection,WWC00,Personal Protective Clothing,0340,169.35,Arco Limited,100015,24/07/2014,10204510
INSERTED DETAIL,Resources & Corporate Governance ,Trade Waste Collection,WWC01,Personal Protective Clothing,0340,16.13,Arco Limited,100015,24/07/2014,10204510
INSERTED DETAIL,Housing Revenue Account ,Unplanned Maintenance and Repair,UMR00,R&M External Contractors,0100,563.31,AWM Electrical Contractors Ltd,100051,03/07/2014,10203999
INSERTED DETAIL,Housing Revenue Account ,Unplanned Maintenance and Repair,UMR00,R&M External Contractors,0100,3810.39,AWM Electrical Contractors Ltd,100051,03/07/2014,10204002
INSERTED DETAIL,Housing Revenue Account ,Unplanned Maintenance and Repair,UMR00,R&M External Contractors,0100,532.74,AWM Electrical Contractors Ltd,100051,03/07/2014,10204005
INSERTED DETAIL,Housing Revenue Account ,Unplanned Maintenance and Repair,UMR00,R&M External Contractors,0100,446.10,AWM Electrical Contractors Ltd,100051,03/07/2014,10204237
INSERTED DETAIL,Housing Revenue Account ,Unplanned Maintenance and Repair,UMR00,R&M External Contractors,0100,369.55,AWM Electrical Contractors Ltd,100051,03/07/2014,10204240
INSERTED DETAIL,Capital Programme ,Disabled Adaptations,HCR01,Capital Contract Payments,5000,68.77,AWM Electrical Contractors Ltd,100051,03/07/2014,10204240
INSERTED DETAIL,Housing Revenue Account ,Unplanned Maintenance and Repair,UMR00,R&M External Contractors,0100,625.17,AWM Electrical Contractors Ltd,100051,10/07/2014,10204461
INSERTED DETAIL,Housing Revenue Account ,Unplanned Maintenance and Repair,UMR00,R&M External Contractors,0100,3482.53,AWM Electrical Contractors Ltd,100051,10/07/2014,10204525
INSERTED DETAIL,Housing Revenue Account ,Unplanned Maintenance and Repair,UMR00,R&M External Contractors,0100,429.61,AWM Electrical Contractors Ltd,100051,17/07/2014,10205061
INSERTED DETAIL,Housing Revenue Account ,Unplanned Maintenance and Repair,UMR00,R&M External Contractors,0100,2594.39,AWM Electrical Contractors Ltd,100051,17/07/2014,10205064
INSERTED DETAIL,Housing Revenue Account ,Unplanned Maintenance and Repair,UMR00,R&M External Contractors,0100,1190.70,AWM Electrical Contractors Ltd,100051,24/07/2014,10205234
INSERTED DETAIL,Housing Revenue Account ,Unplanned Maintenance and Repair,UMR00,R&M External Contractors,0100,1367.28,AWM Electrical Contractors Ltd,100051,24/07/2014,10205235
INSERTED DETAIL,Housing Revenue Account ,Repairs and Maintenance - Void works,UMR09,R&M External Contractors,0100,5648.89,AWM Electrical Contractors Ltd,100051,24/07/2014,10205236
INSERTED DETAIL,Housing Revenue Account ,Repairs and Maintenance - Void works,UMR09,R&M External Contractors,0100,1211.85,AWM Electrical Contractors Ltd,100051,24/07/2014,10205237
INSERTED DETAIL,Housing Revenue Account ,Unplanned Maintenance and Repair,UMR00,R&M External Contractors,0100,1194.09,AWM Electrical Contractors Ltd,100051,24/07/2014,10205238
INSERTED DETAIL,Housing Revenue Account ,Unplanned Maintenance and Repair,UMR00,R&M External Contractors,0100,27.98,AWM Electrical Contractors Ltd,100051,31/07/2014,10205501
INSERTED DETAIL,Housing Revenue Account ,Repairs and Maintenance - Void works,UMR09,R&M External Contractors,0100,855.98,AWM Electrical Contractors Ltd,100051,31/07/2014,10205501
INSERTED DETAIL,Economy Development & Culture,Decrim. of Car Parking on street parking,DPE02,Maintenance of Equipment,0301,510.00,Cale Briparc Ltd,100158,17/07/2014,10203792
INSERTED DETAIL,Resources & Corporate Governance ,Council Tax and NNDR Collection,CTX01,External Contractor & Operator,0742,201.42,Bristow & Sutor,100159,10/07/2014,10204476
INSERTED DETAIL,Resources & Corporate Governance ,Council Tax and NNDR Collection,CTX01,External Contractor & Operator,0742,485.68,Bristow & Sutor,100159,24/07/2014,10204976
INSERTED DETAIL,Resources & Corporate Governance ,Council Tax and NNDR Collection,CTX01,External Contractor & Operator,0742,289.96,Bristow & Sutor,100159,24/07/2014,10205160
INSERTED DETAIL,Resources & Corporate Governance ,Council Tax and NNDR Collection,CTX01,External Contractor & Operator,0742,36.32,Bristow & Sutor,100159,31/07/2014,10205412
INSERTED DETAIL,Resources & Corporate Governance ,Town Hall,OFF00,R&M External Contractors,0100,75.78,British Telecommunications Plc,100161,24/07/2014,10204522
INSERTED DETAIL,Housing Revenue Account ,Control Centre (HRA),CCE00,New Equipment,0300,57.00,British Telecommunications Plc,100161,24/07/2014,10204522
INSERTED DETAIL,Economy Development & Culture,Art Gallery and Museum,AGM00,Telephone Expenses,0371,210.85,British Telecommunications Plc,100161,24/07/2014,10204522
INSERTED DETAIL,Economy Development & Culture,The Benn Hall,BHL00,Telephone Expenses,0371,37.95,British Telecommunications Plc,100161,24/07/2014,10204522
INSERTED DETAIL,Resources & Corporate Governance ,ITC & Support Services,CIS10,Telephone Expenses,0371,1097.04,British Telecommunications Plc,100161,24/07/2014,10204522
INSERTED DETAIL,Resources & Corporate Governance ,Civic Responsibilities,CIV00,Telephone Expenses,0371,43.57,British Telecommunications Plc,100161,24/07/2014,10204522
INSERTED DETAIL,Economy Development & Culture,Car Parks General,CPK01,Telephone Expenses,0371,19.32,British Telecommunications Plc,100161,24/07/2014,10204522
INSERTED DETAIL,Economy Development & Culture,Decrim. of Car Parking on street parking,DPE02,Telephone Expenses,0371,77.29,British Telecommunications Plc,100161,24/07/2014,10204522
INSERTED DETAIL,Sustainable Inclusive Communities,Housing Benefit Administration,HBA00,Telephone Expenses,0371,37.89,British Telecommunications Plc,100161,24/07/2014,10204522
INSERTED DETAIL,Resources & Corporate Governance ,Town Hall,OFF00,Telephone Expenses,0371,37.89,British Telecommunications Plc,100161,24/07/2014,10204522
INSERTED DETAIL,Sustainable Environment ,Parks,PKS00,Telephone Expenses,0371,53.15,British Telecommunications Plc,100161,24/07/2014,10204522
INSERTED DETAIL,Resources & Corporate Governance ,Central Telephone Service,TEL00,Telephone Expenses,0371,37.89,British Telecommunications Plc,100161,24/07/2014,10204522
INSERTED DETAIL,Economy Development & Culture,Visitor Centre,VSC00,Telephone Expenses,0371,75.93,British Telecommunications Plc,100161,24/07/2014,10204522
INSERTED DETAIL,Resources & Corporate Governance ,Council Tax and NNDR Collection,CTX01,Software Maintenance,0374,216.05,British Telecommunications Plc,100161,24/07/2014,10204522
INSERTED DETAIL,Resources & Corporate Governance ,WSU Depot,WDP00,Telephone Expenses,0371,457.32,British Telecommunications Plc,100161,10/07/2014,10204567
INSERTED DETAIL,Resources & Corporate Governance ,Garage Internal,WVR01,Maintenance of Equipment,0301,476.33,Charles Watts Engineering Ltd,100302,03/07/2014,10204177
INSERTED DETAIL,Resources & Corporate Governance,Corporate Property R&M,CPA01,R&M External Contractors,0100,3036.20,Charles Watts Engineering Ltd,100302,03/07/2014,10204190
INSERTED DETAIL,Resources & Corporate Governance ,Financial Services,RES10,Subscriptions,0421,2410.00,Cipfa Business Ltd,100341,31/07/2014,10205290
INSERTED DETAIL,Resources & Corporate Governance ,IT Procurement,CMP00,IT Capital Expenditure,5025,2910.00,Stone Computers,100390,17/07/2014,10204667
INSERTED DETAIL,Resources & Corporate Governance ,IT Procurement,CMP00,IT Capital Expenditure,5025,1310.50,Stone Computers,100390,17/07/2014,10204821
INSERTED DETAIL,Economy Development & Culture,Economic Development General,ECD00,Development Activities,0450,900.00,Coventry & Warwickshire Chamber Of Commerce,100412,03/07/2014,10204346
INSERTED DETAIL,Economy Development & Culture,Economic Development General,ECD00,Development Activities,0450,1200.00,Coventry & Warwickshire Chamber Of Commerce,100412,17/07/2014,10204758
INSERTED DETAIL,Sustainable Environment ,Clinical Waste,REF04,External Contractor & Operator,0742,477.62,OCS Group UK Ltd t/a Cannon,100436,10/07/2014,10204396
INSERTED DETAIL,Sustainable Environment,Regulatory Services,REG00,Other Miscellaneous Expenses,0444,2200.00,Heart Of England Co-operative Society Ltd,100479,17/07/2014,10204751
INSERTED DETAIL,Economy Development & Culture,AGM Exhibitions/Outreach,AGM02,Other Miscellaneous Expenses,0444,1020.00,C'Art - Art Transport Ltd,100487,17/07/2014,10203923
INSERTED DETAIL,Sustainable Environment ,Parks,PKS00,R&M External Contractors,0100,1650.00,Chains & Lifting Tackle (Coventry) Ltd,100521,10/07/2014,10204297
INSERTED DETAIL,Resources & Corporate Governance ,Trade Waste Collection,WWC01,Vehicle Repair and Maintenance,0200,464.08,Dennis Eagle Ltd,100559,31/07/2014,10205334
INSERTED DETAIL,Economy Development & Culture,Building Control Services,BCS00,Subscriptions,0421,1063.32,District Surveyors Association Limited,100582,10/07/2014,10204248
INSERTED DETAIL,Economy Development & Culture,Building Control Services Non-Fee Earning Account,BCS01,Subscriptions,0421,37.31,District Surveyors Association Limited,100582,10/07/2014,10204248
INSERTED DETAIL,Economy Development & Culture,Building Regulation Fee Earning Account,BCS99,Subscriptions,0421,764.84,District Surveyors Association Limited,100582,10/07/2014,10204248
INSERTED DETAIL,Capital Programme ,Bathroom Modifications,HIS01,Capital Contract Payments,5000,2904.00,JADA Building & Maintenance Services Ltd,100583,03/07/2014,10203995
INSERTED DETAIL,Capital Programme ,Bathroom Modifications,HIS01,Capital Contract Payments,5000,2495.00,JADA Building & Maintenance Services Ltd,100583,03/07/2014,10203996
INSERTED DETAIL,Capital Programme ,Bathroom Modifications,HIS01,Capital Contract Payments,5000,7485.00,JADA Building & Maintenance Services Ltd,100583,03/07/2014,10203997
INSERTED DETAIL,Capital Programme ,Bathroom Modifications,HIS01,Capital Contract Payments,5000,4990.00,JADA Building & Maintenance Services Ltd,100583,03/07/2014,10203998
INSERTED DETAIL,Capital Programme ,Bathroom Modifications,HIS01,Capital Contract Payments,5000,3696.00,JADA Building & Maintenance Services Ltd,100583,17/07/2014,10204800
INSERTED DETAIL,Capital Programme ,Bathroom Modifications,HIS01,Capital Contract Payments,5000,1056.00,JADA Building & Maintenance Services Ltd,100583,17/07/2014,10205059
INSERTED DETAIL,Economy Development & Culture,Grants and Subscriptions,LGS00,Grants To Voluntary Organisations,0720,1000.00,Draycote Water Sailing Club,100591,31/07/2014,10205515
INSERTED DETAIL,Housing Revenue Account ,Repairs and Maintenance - Void works,UMR09,R&M External Contractors,0100,665.93,Dulux Decorator Centres,100597,24/07/2014,10204657
INSERTED DETAIL,Resources & Corporate Governance ,WSU Depot,WDP00,Gas,0131,523.77,ESPO,100641,17/07/2014,10203744
INSERTED DETAIL,Housing Revenue Account ,Lesley Souter House AP,AGP16,Gas,0131,808.50,ESPO,100641,10/07/2014,10204122
INSERTED DETAIL,Housing Revenue Account ,Tanser Court AP,AGP17,Gas,0131,1244.05,ESPO,100641,10/07/2014,10204123
INSERTED DETAIL,Housing Revenue Account ,Albert Square AP,AGP20,Gas,0131,1335.76,ESPO,100641,10/07/2014,10204124
INSERTED DETAIL,Housing Revenue Account ,Tanser Court AP,AGP17,Gas,0131,967.52,ESPO,100641,17/07/2014,10204789
INSERTED DETAIL,Housing Revenue Account ,Lesley Souter House AP,AGP16,Gas,0131,717.43,ESPO,100641,17/07/2014,10204790
INSERTED DETAIL,Housing Revenue Account ,Albert Square AP,AGP20,Gas,0131,722.75,ESPO,100641,17/07/2014,10204791
INSERTED DETAIL,Sustainable Environment,Crematorium,CRM00,Gas,0131,2182.51,ESPO,100641,24/07/2014,10204793
INSERTED DETAIL,Resources & Corporate Governance,Corporate Property Central Utilities,CPA02,Gas,0131,553.22,ESPO,100641,31/07/2014,10204795
INSERTED DETAIL,Resources & Corporate Governance,Corporate Property Central Utilities,CPA02,Gas,0131,969.79,ESPO,100641,31/07/2014,10204798
INSERTED DETAIL,Resources & Corporate Governance,Corporate Property Central Utilities,CPA02,Gas,0131,1269.53,ESPO,100641,31/07/2014,10205056
INSERTED DETAIL,Economy Development & Culture,The Benn Hall,BHL00,New Equipment,0300,1162.00,ESPO,100641,31/07/2014,10205416
INSERTED DETAIL,Resources & Corporate Governance ,Street Cleansing,WSC00,Vehicle Repair and Maintenance,0200,1133.59,Ford & Slater,100817,31/07/2014,10205086
INSERTED DETAIL,Resources & Corporate Governance ,Garage Internal,WVR01,Materials,0303,684.50,Fuchs Lubricants (Uk) Plc,100832,31/07/2014,10205182
INSERTED DETAIL,Resources & Corporate Governance ,Domestic Waste Collection,WWC00,Vehicle Repair and Maintenance,0200,494.57,FAUN Zoeller (UK) Ltd,100871,24/07/2014,10204581
INSERTED DETAIL,Resources & Corporate Governance ,Town Hall,OFF00,Materials,0303,442.42,Greenham,100890,24/07/2014,10204883
INSERTED DETAIL,Economy Development & Culture,Art Gallery and Museum,AGM00,Other Consumables,0351,450.93,Greenham,100890,17/07/2014,10204887
INSERTED DETAIL,Sustainable Environment ,Parks,PKS00,Maintenance of Equipment,0301,1024.50,GB Sport & Leisure UK Ltd,100920,31/07/2014,10205333
INSERTED DETAIL,Sustainable Environment,Crematorium,CRM00,Materials,0303,604.00,Gemini CCS Ltd,100922,10/07/2014,10204554
INSERTED DETAIL,Sustainable Environment,Crematorium,CRM00,Materials,0303,1118.02,Gemini CCS Ltd,100922,24/07/2014,10205281
INSERTED DETAIL,Sustainable Environment,Crematorium,CRM00,Materials,0303,2289.68,Gemini CCS Ltd,100922,24/07/2014,10205282
INSERTED DETAIL,Sustainable Environment,Crematorium,CRM00,Materials,0303,604.00,Gemini CCS Ltd,100922,24/07/2014,10205295
INSERTED DETAIL,Resources & Corporate Governance ,Corporate Property Management,CPM00,Asset Management Expenses,0448,1000.00,Godfrey-Payton Chartered Surveyors,100937,31/07/2014,10205554
INSERTED DETAIL,Economy Development & Culture,Visitor Centre,VSC00,Purchases for Resale,0305,575.40,Grays of Cambridge (Intl) Limited,100949,24/07/2014,10205172
INSERTED DETAIL,Resources & Corporate Governance ,Human Resources Centralised Services,RES31,Recruitment Expenses,0012,922.72,TMP (UK) LTD,100972,10/07/2014,10204591
INSERTED DETAIL,Resources & Corporate Governance ,Human Resources Centralised Services,RES31,Recruitment Expenses,0012,585.00,TMP (UK) LTD,100972,17/07/2014,10204826
INSERTED DETAIL,Resources & Corporate Governance ,Human Resources Centralised Services,RES31,Recruitment Expenses,0012,531.24,TMP (UK) LTD,100972,24/07/2014,10205119
INSERTED DETAIL,Resources & Corporate Governance,Corporate Property R&M,CPA01,R&M External Contractors,0100,600.00,ThyssenKrupp Elevator UK,100985,31/07/2014,10204484
INSERTED DETAIL,Resources & Corporate Governance ,Town Hall,OFF00,New Equipment,0300,418.94,IE Office Equipment Ltd,101114,03/07/2014,10204303
INSERTED DETAIL,Resources & Corporate Governance ,General Financial Services,GFS00,Other Insurance Premiums,0440,6500.00,Jardine Lloyd Thompson,101192,17/07/2014,10204752
INSERTED DETAIL,Resources & Corporate Governance,Housing Maintenance,WHM00,External Contractor & Operator,0742,1951.46,Clews Recycling Limited,101213,03/07/2014,10203083
INSERTED DETAIL,Resources & Corporate Governance,Housing Maintenance,WHM00,External Contractor & Operator,0742,679.88,Clews Recycling Limited,101213,10/07/2014,10204360
INSERTED DETAIL,,User Balance Sheet Cost Centre,BSU,Revenue Section Agreements,9865,1500.00,Long Lawford Parish Council,101228,17/07/2014,10204648
INSERTED DETAIL,Resources & Corporate Governance,Housing Maintenance,WHM00,Materials,0303,630.00,Melbros Ltd,101291,03/07/2014,10203219
INSERTED DETAIL,Resources & Corporate Governance,Housing Maintenance,WHM00,Materials,0303,7160.00,Melbros Ltd,101291,17/07/2014,10204305
INSERTED DETAIL,Resources & Corporate Governance,Housing Maintenance,WHM00,Materials,0303,685.86,Melbros Ltd,101291,17/07/2014,10204314
INSERTED DETAIL,Resources & Corporate Governance,Housing Maintenance,WHM00,Materials,0303,545.42,Melbros Ltd,101291,17/07/2014,10204315
INSERTED DETAIL,Resources & Corporate Governance,Housing Maintenance,WHM00,Materials,0303,671.70,Melbros Ltd,101291,17/07/2014,10204328
INSERTED DETAIL,Resources & Corporate Governance,Housing Maintenance,WHM00,Materials,0303,497.01,Melbros Ltd,101291,17/07/2014,10204330
INSERTED DETAIL,Resources & Corporate Governance,Housing Maintenance,WHM00,Materials,0303,428.05,Melbros Ltd,101291,17/07/2014,10204331
INSERTED DETAIL,Resources & Corporate Governance,Housing Maintenance,WHM00,Materials,0303,625.19,Melbros Ltd,101291,10/07/2014,10204334
INSERTED DETAIL,Resources & Corporate Governance,Housing Maintenance,WHM00,Materials,0303,660.60,Melbros Ltd,101291,24/07/2014,10205026
INSERTED DETAIL,Resources & Corporate Governance ,Highways,WHG00,Materials,0303,55.16,Melbros Ltd,101291,31/07/2014,10205040
INSERTED DETAIL,Resources & Corporate Governance,Housing Maintenance,WHM00,Materials,0303,1443.44,Melbros Ltd,101291,31/07/2014,10205040
INSERTED DETAIL,Economy Development & Culture,Grants and Subscriptions,LGS00,Grants To Voluntary Organisations,0720,1000.00,Monks Kirby Parish Council,101300,24/07/2014,10205240
INSERTED DETAIL,Resources & Corporate Governance ,Domestic Waste Collection,WWC00,Vehicle Repair and Maintenance,0200,843.20,Noden Truck Centre Ltd,101368,31/07/2014,10205093
INSERTED DETAIL,Resources & Corporate Governance ,Domestic Waste Collection,WWC00,Vehicle Repair and Maintenance,0200,843.20,Noden Truck Centre Ltd,101368,31/07/2014,10205094
INSERTED DETAIL,Capital Programme ,Open Spaces Refurbishment,LEI08,Capital Contract Payments,5000,1839.00,Nuneaton Signs Ltd,101371,17/07/2014,10203778
INSERTED DETAIL,Capital Programme ,Open Spaces Refurbishment,LEI08,Capital Contract Payments,5000,685.00,Nuneaton Signs Ltd,101371,10/07/2014,10204385
INSERTED DETAIL,Sustainable Inclusive Communities,CL Grants,CGS00,Grants To Voluntary Organisations,0720,2000.00,New Bilton Community Association,101389,10/07/2014,10204523
INSERTED DETAIL,Economy Development & Culture,Visitor Centre,VSC00,Events Tickets - Zero Rated,1405,1373.43,National Express Ltd,101392,10/07/2014,10204365
INSERTED DETAIL,Sustainable Environment,Regulatory Services,REG00,Telephone Expenses,0371,7.75,EE Ltd t/a Orange Personal Communications,101404,10/07/2014,10203946
INSERTED DETAIL,Resources & Corporate Governance ,WSU Depot,WDP00,Telephone Expenses,0371,419.26,EE Ltd t/a Orange Personal Communications,101404,10/07/2014,10203946
INSERTED DETAIL,Sustainable Environment,Regulatory Services,REG00,Telephone Expenses,0371,7.75,EE Ltd t/a Orange Personal Communications,101404,24/07/2014,10205272
INSERTED DETAIL,Resources & Corporate Governance ,WSU Depot,WDP00,Telephone Expenses,0371,441.25,EE Ltd t/a Orange Personal Communications,101404,24/07/2014,10205272
INSERTED DETAIL,Sustainable Environment ,Hackney Carriages,HKC00,External Contractor & Operator,0742,573.07,Alan Nuttall Ltd,101432,10/07/2014,10202841
INSERTED DETAIL,Sustainable Inclusive Communities,Sewage Disposal Plant,SDP00,R&M External Contractors,0100,520.28,PJT Pumping Services,101438,17/07/2014,10204722
INSERTED DETAIL,Sustainable Environment ,Parks,PKS00,R&M External Contractors,0100,575.00,Post To Post Fencing,101490,17/07/2014,10204995
INSERTED DETAIL,Sustainable Environment ,Parks,PKS00,External Contractor & Operator,0742,125.00,Post To Post Fencing,101490,17/07/2014,10204995
INSERTED DETAIL,Capital Programme ,Open Spaces Refurbishment,LEI08,Capital Contract Payments,5000,380.00,Post To Post Fencing,101490,17/07/2014,10204995
INSERTED DETAIL,Resources & Corporate Governance,Central Business Support Services,CSS15,Photocopying,0354,432.04,Xerox (UK) Ltd,101502,17/07/2014,10204845
INSERTED DETAIL,Resources & Corporate Governance,Central Business Support Services,CSS15,Photocopying,0354,3914.19,Xerox (UK) Ltd,101502,17/07/2014,10204846
INSERTED DETAIL,Resources & Corporate Governance,Central Business Support Services,CSS15,Photocopying,0354,492.23,Xerox (UK) Ltd,101502,17/07/2014,10204848
INSERTED DETAIL,Resources & Corporate Governance,Central Business Support Services,CSS15,Photocopying,0354,427.89,Xerox (UK) Ltd,101502,17/07/2014,10204922
INSERTED DETAIL,Capital Programme ,Bathroom Modifications,HIS01,Capital Contract Payments,5000,12100.00,Reeds Plumbing & Heating Contractors Ltd,101504,03/07/2014,10203992
INSERTED DETAIL,Capital Programme ,Disabled Adaptations,HCR01,Capital Contract Payments,5000,1800.00,Reeds Plumbing & Heating Contractors Ltd,101504,03/07/2014,10203993
INSERTED DETAIL,Capital Programme ,Bathroom Modifications,HIS01,Capital Contract Payments,5000,12100.00,Reeds Plumbing & Heating Contractors Ltd,101504,03/07/2014,10204238
INSERTED DETAIL,Capital Programme ,Bathroom Modifications,HIS01,Capital Contract Payments,5000,4924.00,Reeds Plumbing & Heating Contractors Ltd,101504,03/07/2014,10204239
INSERTED DETAIL,Capital Programme ,Bathroom Modifications,HIS01,Capital Contract Payments,5000,14460.00,Reeds Plumbing & Heating Contractors Ltd,101504,10/07/2014,10204460
INSERTED DETAIL,Capital Programme ,Disabled Adaptations,HCR01,Capital Contract Payments,5000,1800.00,Reeds Plumbing & Heating Contractors Ltd,101504,10/07/2014,10204571
INSERTED DETAIL,Capital Programme ,Disabled Facilities Grant,REN01,Capital Grants,5014,3460.00,Reeds Plumbing & Heating Contractors Ltd,101504,17/07/2014,10204629
INSERTED DETAIL,Capital Programme ,Bathroom Modifications,HIS01,Capital Contract Payments,5000,2564.00,Reeds Plumbing & Heating Contractors Ltd,101504,17/07/2014,10204804
INSERTED DETAIL,Capital Programme ,Bathroom Modifications,HIS01,Capital Contract Payments,5000,6270.00,Reeds Plumbing & Heating Contractors Ltd,101504,17/07/2014,10204805
INSERTED DETAIL,Capital Programme ,Disabled Adaptations,HCR01,Capital Contract Payments,5000,6300.00,Reeds Plumbing & Heating Contractors Ltd,101504,17/07/2014,10204957
INSERTED DETAIL,Capital Programme ,Bathroom Modifications,HIS01,Capital Contract Payments,5000,16760.00,Reeds Plumbing & Heating Contractors Ltd,101504,17/07/2014,10204957
INSERTED DETAIL,Capital Programme ,Disabled Adaptations,HCR01,Capital Contract Payments,5000,5400.00,Reeds Plumbing & Heating Contractors Ltd,101504,31/07/2014,10205304
INSERTED DETAIL,Capital Programme ,Bathroom Modifications,HIS01,Capital Contract Payments,5000,15530.00,Reeds Plumbing & Heating Contractors Ltd,101504,31/07/2014,10205304
INSERTED DETAIL,Housing Revenue Account ,Supervision and Management General,MAN00,Movement Incentives,0454,500.00,Rugby Borough Council,101516,17/07/2014,10204997
INSERTED DETAIL,Housing Revenue Account ,Property Maintenance,MAN23,Agency Staff,0003,485.63,Rugby Recruitment Services Ltd,101521,03/07/2014,10204097
INSERTED DETAIL,Housing Revenue Account ,Property Maintenance,MAN23,Agency Staff,0003,485.63,Rugby Recruitment Services Ltd,101521,10/07/2014,10204530
INSERTED DETAIL,Housing Revenue Account ,Property Maintenance,MAN23,Agency Staff,0003,492.10,Rugby Recruitment Services Ltd,101521,24/07/2014,10205109
INSERTED DETAIL,Housing Revenue Account ,Property Maintenance,MAN23,Agency Staff,0003,495.34,Rugby Recruitment Services Ltd,101521,24/07/2014,10205249
INSERTED DETAIL,Housing Revenue Account ,Property Maintenance,MAN23,Agency Staff,0003,495.34,Rugby Recruitment Services Ltd,101521,31/07/2014,10205361
INSERTED DETAIL,,User Balance Sheet Cost Centre,BSU,Revenue Section Agreements,9865,2037.80,Ryton-On-Dunsmore Parish Council,101522,17/07/2014,10204835
INSERTED DETAIL,Economy Development & Culture,Art Gallery and Museum,AGM00,Postage & Distribution,0370,0.84,Royal Mail,101554,10/07/2014,10204018
INSERTED DETAIL,Economy Development & Culture,Building Control Services,BCS00,Postage & Distribution,0370,1.13,Royal Mail,101554,10/07/2014,10204018
INSERTED DETAIL,Economy Development & Culture,Building Control Services Non-Fee Earning Account,BCS01,Postage & Distribution,0370,1.13,Royal Mail,101554,10/07/2014,10204018
INSERTED DETAIL,Economy Development & Culture,Building Regulation Fee Earning Account,BCS99,Postage & Distribution,0370,20.28,Royal Mail,101554,10/07/2014,10204018
INSERTED DETAIL,Economy Development & Culture,Car Parks General,CPK01,Postage & Distribution,0370,29.77,Royal Mail,101554,10/07/2014,10204018
INSERTED DETAIL,Resources & Corporate Governance,Central Business Support Services,CSS15,Postage & Distribution,0370,586.02,Royal Mail,101554,10/07/2014,10204018
INSERTED DETAIL,Resources & Corporate Governance ,Council Tax and NNDR Collection,CTX01,Postage & Distribution,0370,362.88,Royal Mail,101554,10/07/2014,10204018
INSERTED DETAIL,Economy Development & Culture,Decrim. of Car Parking on street parking,DPE02,Postage & Distribution,0370,119.08,Royal Mail,101554,10/07/2014,10204018
INSERTED DETAIL,Resources & Corporate Governance ,Electoral Registration,ERG00,Postage & Distribution,0370,1.47,Royal Mail,101554,10/07/2014,10204018
INSERTED DETAIL,Sustainable Inclusive Communities,Housing Benefit Administration,HBA00,Postage & Distribution,0370,404.37,Royal Mail,101554,10/07/2014,10204018
INSERTED DETAIL,Housing Revenue Account ,Supervision and Management General,MAN00,Postage & Distribution,0370,111.18,Royal Mail,101554,10/07/2014,10204018
INSERTED DETAIL,Economy Development & Culture,Planning General/Income,PLN00,Postage & Distribution,0370,180.48,Royal Mail,101554,10/07/2014,10204018
INSERTED DETAIL,Economy Development & Culture,Visitor Centre,VSC00,Postage & Distribution,0370,21.14,Royal Mail,101554,10/07/2014,10204018
INSERTED DETAIL,Resources & Corporate Governance ,General Administration,WAD00,Postage & Distribution,0370,1.47,Royal Mail,101554,10/07/2014,10204018
INSERTED DETAIL,Resources & Corporate Governance,Central Business Support Services,CSS15,Postage & Distribution,0370,3495.00,Royal Mail,101554,10/07/2014,10204441
INSERTED DETAIL,Economy Development & Culture,Art Gallery and Museum,AGM00,Postage & Distribution,0370,6.61,Royal Mail,101554,17/07/2014,10204718
INSERTED DETAIL,Economy Development & Culture,Building Control Services,BCS00,Postage & Distribution,0370,1.03,Royal Mail,101554,17/07/2014,10204718
INSERTED DETAIL,Economy Development & Culture,Building Control Services Non-Fee Earning Account,BCS01,Postage & Distribution,0370,1.03,Royal Mail,101554,17/07/2014,10204718
INSERTED DETAIL,Economy Development & Culture,Building Regulation Fee Earning Account,BCS99,Postage & Distribution,0370,18.59,Royal Mail,101554,17/07/2014,10204718
INSERTED DETAIL,Economy Development & Culture,Car Parks General,CPK01,Postage & Distribution,0370,71.36,Royal Mail,101554,17/07/2014,10204718
INSERTED DETAIL,Resources & Corporate Governance,Central Business Support Services,CSS15,Postage & Distribution,0370,381.23,Royal Mail,101554,17/07/2014,10204718
INSERTED DETAIL,Resources & Corporate Governance ,Council Tax and NNDR Collection,CTX01,Postage & Distribution,0370,258.63,Royal Mail,101554,17/07/2014,10204718
INSERTED DETAIL,Economy Development & Culture,Decrim. of Car Parking on street parking,DPE02,Postage & Distribution,0370,285.42,Royal Mail,101554,17/07/2014,10204718
INSERTED DETAIL,Resources & Corporate Governance ,Electoral Registration,ERG00,Postage & Distribution,0370,1.53,Royal Mail,101554,17/07/2014,10204718
INSERTED DETAIL,Sustainable Inclusive Communities,Housing Benefit Administration,HBA00,Postage & Distribution,0370,248.04,Royal Mail,101554,17/07/2014,10204718
INSERTED DETAIL,Housing Revenue Account ,Supervision and Management General,MAN00,Postage & Distribution,0370,53.71,Royal Mail,101554,17/07/2014,10204718
INSERTED DETAIL,Economy Development & Culture,Planning General/Income,PLN00,Postage & Distribution,0370,232.86,Royal Mail,101554,17/07/2014,10204718
INSERTED DETAIL,Economy Development & Culture,Visitor Centre,VSC00,Postage & Distribution,0370,1.87,Royal Mail,101554,17/07/2014,10204718
INSERTED DETAIL,Resources & Corporate Governance ,General Administration,WAD00,Postage & Distribution,0370,3.80,Royal Mail,101554,17/07/2014,10204718
INSERTED DETAIL,Resources & Corporate Governance ,Electoral Registration,ERG00,Postage & Distribution,0370,640.70,Royal Mail,101554,17/07/2014,10204755
INSERTED DETAIL,Economy Development & Culture,Art Gallery and Museum,AGM00,Postage & Distribution,0370,0.49,Royal Mail,101554,31/07/2014,10205033
INSERTED DETAIL,Economy Development & Culture,Building Control Services,BCS00,Postage & Distribution,0370,1.06,Royal Mail,101554,31/07/2014,10205033
INSERTED DETAIL,Economy Development & Culture,Building Control Services Non-Fee Earning Account,BCS01,Postage & Distribution,0370,1.06,Royal Mail,101554,31/07/2014,10205033
INSERTED DETAIL,Economy Development & Culture,Building Regulation Fee Earning Account,BCS99,Postage & Distribution,0370,19.02,Royal Mail,101554,31/07/2014,10205033
INSERTED DETAIL,Economy Development & Culture,Car Parks General,CPK01,Postage & Distribution,0370,13.13,Royal Mail,101554,31/07/2014,10205033
INSERTED DETAIL,Resources & Corporate Governance,Central Business Support Services,CSS15,Postage & Distribution,0370,90.78,Royal Mail,101554,31/07/2014,10205033
INSERTED DETAIL,Resources & Corporate Governance ,Council Tax and NNDR Collection,CTX01,Postage & Distribution,0370,33.32,Royal Mail,101554,31/07/2014,10205033
INSERTED DETAIL,Economy Development & Culture,Decrim. of Car Parking on street parking,DPE02,Postage & Distribution,0370,52.53,Royal Mail,101554,31/07/2014,10205033
INSERTED DETAIL,Sustainable Inclusive Communities,Housing Benefit Administration,HBA00,Postage & Distribution,0370,127.62,Royal Mail,101554,31/07/2014,10205033
INSERTED DETAIL,Housing Revenue Account ,Supervision and Management General,MAN00,Postage & Distribution,0370,1262.70,Royal Mail,101554,31/07/2014,10205033
INSERTED DETAIL,Economy Development & Culture,Planning General/Income,PLN00,Postage & Distribution,0370,151.75,Royal Mail,101554,31/07/2014,10205033
INSERTED DETAIL,Economy Development & Culture,Visitor Centre,VSC00,Postage & Distribution,0370,1.72,Royal Mail,101554,31/07/2014,10205033
INSERTED DETAIL,Resources & Corporate Governance ,General Administration,WAD00,Postage & Distribution,0370,22.54,Royal Mail,101554,31/07/2014,10205033
INSERTED DETAIL,Resources & Corporate Governance ,Grounds Maintenance,WGM00,Training fees,0011,640.00,Playsafety Ltd,101605,24/07/2014,10204701
INSERTED DETAIL,Resources & Corporate Governance,Corporate Property Central Utilities,CPA02,Water Services,0143,1037.61,Severn Trent Water Ltd,101610,31/07/2014,10204555
INSERTED DETAIL,Resources & Corporate Governance,Corporate Property Central Utilities,CPA02,Water Services,0143,1607.61,Severn Trent Water Ltd,101610,31/07/2014,10204943
INSERTED DETAIL,Resources & Corporate Governance,Corporate Property Central Utilities,CPA02,Water Services,0143,2084.19,Severn Trent Water Ltd,101610,31/07/2014,10205208
INSERTED DETAIL,Capital Programme ,Disabled Facilities Grant,REN01,Capital Grants,5014,4265.00,Stannah Stairlifts Ltd,101623,10/07/2014,10204549
INSERTED DETAIL,Housing Revenue Account ,Unplanned Maintenance and Repair,UMR00,R&M External Contractors,0100,5828.62,Stannah Stairlifts Ltd,101623,17/07/2014,10204580
INSERTED DETAIL,Capital Programme ,Kitchen Modifications,HIK10,Capital Contract Payments,5000,282.24,Thomson Reuters,101632,17/07/2014,10204656
INSERTED DETAIL,Capital Programme ,Heating Upgrades,HIM01,Capital Contract Payments,5000,352.80,Thomson Reuters,101632,17/07/2014,10204656
INSERTED DETAIL,Resources & Corporate Governance,Corporate Property R&M,CPA01,R&M External Contractors,0100,581.95,Secom Plc,101671,31/07/2014,10203921
INSERTED DETAIL,Resources & Corporate Governance,Corporate Property R&M,CPA01,R&M External Contractors,0100,-581.95,Secom Plc,101671,31/07/2014,10204939
INSERTED DETAIL,Resources & Corporate Governance,Housing Maintenance,WHM00,Materials,0303,4342.08,Travis Perkins Trading Co Ltd,101732,03/07/2014,10203234
INSERTED DETAIL,Resources & Corporate Governance,Housing Maintenance,WHM00,Materials,0303,2971.10,Travis Perkins Trading Co Ltd,101732,10/07/2014,10203489
INSERTED DETAIL,Resources & Corporate Governance,Housing Maintenance,WHM00,Materials,0303,3262.37,Travis Perkins Trading Co Ltd,101732,17/07/2014,10203932
INSERTED DETAIL,Resources & Corporate Governance,Housing Maintenance,WHM00,Materials,0303,3499.10,Travis Perkins Trading Co Ltd,101732,24/07/2014,10204142
INSERTED DETAIL,Resources & Corporate Governance,Housing Maintenance,WHM00,Materials,0303,3907.88,Travis Perkins Trading Co Ltd,101732,31/07/2014,10204633
INSERTED DETAIL,Resources & Corporate Governance,Housing Maintenance,WHM00,Materials,0303,508.82,Travis Perkins Trading Co Ltd,101732,31/07/2014,10204634
INSERTED DETAIL,Resources & Corporate Governance,Housing Maintenance,WHM00,Materials,0303,4243.33,Travis Perkins Trading Co Ltd,101732,31/07/2014,10204645
INSERTED DETAIL,Resources & Corporate Governance ,Domestic Waste Collection,WWC00,Vehicle Running Costs,0201,475.50,HI-Q Motorway,101736,03/07/2014,10204198
INSERTED DETAIL,Resources & Corporate Governance ,Street Cleansing,WSC00,Vehicle Running Costs,0201,108.00,HI-Q Motorway,101736,03/07/2014,10204200
INSERTED DETAIL,Resources & Corporate Governance ,Domestic Waste Collection,WWC00,Vehicle Running Costs,0201,640.00,HI-Q Motorway,101736,03/07/2014,10204200
INSERTED DETAIL,Resources & Corporate Governance ,Trade Waste Collection,WWC01,Vehicle Running Costs,0201,230.00,HI-Q Motorway,101736,03/07/2014,10204200
INSERTED DETAIL,Resources & Corporate Governance ,Domestic Waste Collection,WWC00,Vehicle Running Costs,0201,1220.00,HI-Q Motorway,101736,03/07/2014,10204203
INSERTED DETAIL,Resources & Corporate Governance ,TREE WORKS,WGM01,Vehicle Running Costs,0201,70.00,HI-Q Motorway,101736,03/07/2014,10204204
INSERTED DETAIL,Resources & Corporate Governance ,Highways,WHG00,Vehicle Running Costs,0201,40.00,HI-Q Motorway,101736,03/07/2014,10204204
INSERTED DETAIL,Resources & Corporate Governance,Housing Maintenance,WHM00,Vehicle Running Costs,0201,74.00,HI-Q Motorway,101736,03/07/2014,10204204
INSERTED DETAIL,Resources & Corporate Governance ,Street Cleansing,WSC00,Vehicle Running Costs,0201,10.00,HI-Q Motorway,101736,03/07/2014,10204204
INSERTED DETAIL,Resources & Corporate Governance ,Domestic Waste Collection,WWC00,Vehicle Running Costs,0201,265.00,HI-Q Motorway,101736,03/07/2014,10204204
INSERTED DETAIL,Resources & Corporate Governance ,Domestic Waste Collection,WWC00,Vehicle Running Costs,0201,1115.00,HI-Q Motorway,101736,03/07/2014,10204205
INSERTED DETAIL,Resources & Corporate Governance ,Domestic Waste Collection,WWC00,Vehicle Running Costs,0201,1521.00,HI-Q Motorway,101736,10/07/2014,10204291
INSERTED DETAIL,Resources & Corporate Governance ,Grounds Maintenance,WGM00,New Equipment,0300,39.15,Tudor Environmental,101743,10/07/2014,10204188
INSERTED DETAIL,Resources & Corporate Governance ,Grounds Maintenance,WGM00,Materials,0303,22.52,Tudor Environmental,101743,10/07/2014,10204188
INSERTED DETAIL,Resources & Corporate Governance ,Grounds Maintenance,WGM00,Personal Protective Clothing,0340,499.77,Tudor Environmental,101743,10/07/2014,10204188
INSERTED DETAIL,Resources & Corporate Governance ,Grounds Maintenance,WGM00,Tools,0304,2273.70,Tudor Environmental,101743,17/07/2014,10204674
INSERTED DETAIL,Resources & Corporate Governance ,Grounds Maintenance,WGM00,Tools,0304,970.90,Tudor Environmental,101743,17/07/2014,10204675
INSERTED DETAIL,Resources & Corporate Governance ,Domestic Waste Collection,WWC00,Vehicle Repair and Maintenance,0200,725.00,Terberg Matec Uk,101761,03/07/2014,10203852
INSERTED DETAIL,Resources & Corporate Governance ,Garage Internal,WVR01,Materials,0303,14.50,Terberg Matec Uk,101761,03/07/2014,10203852
INSERTED DETAIL,Resources & Corporate Governance ,Domestic Waste Collection,WWC00,Vehicle Repair and Maintenance,0200,1929.59,Terberg Matec Uk,101761,03/07/2014,10203972
INSERTED DETAIL,Economy Development & Culture,Economic Development General,ECD00,Borough Local Plan,0452,9338.00,Warwickshire Wildlife Trust,101860,17/07/2014,10204599
INSERTED DETAIL,Economy Development & Culture,Economic Development General,ECD00,Borough Local Plan,0452,4413.00,Warwickshire Wildlife Trust,101860,17/07/2014,10204600
INSERTED DETAIL,Sustainable Inclusive Communities,Housing Strategy & Enabling,HSE00,Grants To Voluntary Organisations,0720,2052.00,Warwickshire County Council,101893,03/07/2014,10203508
INSERTED DETAIL,Sustainable Inclusive Communities,Housing Strategy & Enabling,HSE00,Grants To Voluntary Organisations,0720,2052.00,Warwickshire County Council,101893,03/07/2014,10203509
INSERTED DETAIL,Resources & Corporate Governance ,Trade Waste Collection,WWC01,Removal of Waste - WCC,0711,60181.25,Warwickshire County Council,101893,03/07/2014,10203638
INSERTED DETAIL,CSW Superfast Broadband,CSW Superfast Broadband,RBB00,Capital Contract Payments,5000,25995.00,Warwickshire County Council,101893,31/07/2014,10205511
INSERTED DETAIL,Resources & Corporate Governance ,Domestic Waste Collection,WWC00,Vehicle Repair and Maintenance,0200,6033.52,Watling JCB Limited,101922,24/07/2014,10204421
INSERTED DETAIL,Housing Revenue Account ,Unplanned Maintenance and Repair,UMR00,R&M External Contractors,0100,535.48,Adroit Services Ltd,101939,03/07/2014,10204153
INSERTED DETAIL,Capital Programme ,Bathroom Modifications,HIS01,Capital Contract Payments,5000,9956.58,Adroit Services Ltd,101939,03/07/2014,10204153
INSERTED DETAIL,Housing Revenue Account ,Unplanned Maintenance and Repair,UMR00,R&M External Contractors,0100,774.14,Adroit Services Ltd,101939,03/07/2014,10204154
INSERTED DETAIL,Capital Programme ,Bathroom Modifications,HIS01,Capital Contract Payments,5000,271.50,Adroit Services Ltd,101939,03/07/2014,10204154
INSERTED DETAIL,Housing Revenue Account ,Unplanned Maintenance and Repair,UMR00,R&M External Contractors,0100,228.70,Adroit Services Ltd,101939,03/07/2014,10204155
INSERTED DETAIL,Capital Programme ,Bathroom Modifications,HIS01,Capital Contract Payments,5000,9679.08,Adroit Services Ltd,101939,03/07/2014,10204155
INSERTED DETAIL,Housing Revenue Account ,Unplanned Maintenance and Repair,UMR00,R&M External Contractors,0100,353.97,Adroit Services Ltd,101939,03/07/2014,10204235
INSERTED DETAIL,Capital Programme ,Bathroom Modifications,HIS01,Capital Contract Payments,5000,2519.78,Adroit Services Ltd,101939,03/07/2014,10204235
INSERTED DETAIL,Housing Revenue Account ,Unplanned Maintenance and Repair,UMR00,R&M External Contractors,0100,535.60,Adroit Services Ltd,101939,10/07/2014,10204462
INSERTED DETAIL,Capital Programme ,Bathroom Modifications,HIS01,Capital Contract Payments,5000,10116.58,Adroit Services Ltd,101939,10/07/2014,10204462
INSERTED DETAIL,Housing Revenue Account ,Unplanned Maintenance and Repair,UMR00,R&M External Contractors,0100,66.95,Adroit Services Ltd,101939,10/07/2014,10204463
INSERTED DETAIL,Capital Programme ,Bathroom Modifications,HIS01,Capital Contract Payments,5000,2439.77,Adroit Services Ltd,101939,10/07/2014,10204463
INSERTED DETAIL,Capital Programme ,Bathroom Modifications,HIS01,Capital Contract Payments,5000,2562.27,Adroit Services Ltd,101939,10/07/2014,10204524
INSERTED DETAIL,Housing Revenue Account ,Unplanned Maintenance and Repair,UMR00,R&M External Contractors,0100,66.95,Adroit Services Ltd,101939,17/07/2014,10204801
INSERTED DETAIL,Capital Programme ,Bathroom Modifications,HIS01,Capital Contract Payments,5000,2479.77,Adroit Services Ltd,101939,17/07/2014,10204801
INSERTED DETAIL,Capital Programme ,Bathroom Modifications,HIS01,Capital Contract Payments,5000,9719.08,Adroit Services Ltd,101939,17/07/2014,10204802
INSERTED DETAIL,Capital Programme ,Bathroom Modifications,HIS01,Capital Contract Payments,5000,7199.31,Adroit Services Ltd,101939,17/07/2014,10204955
INSERTED DETAIL,Housing Revenue Account ,Unplanned Maintenance and Repair,UMR00,R&M External Contractors,0100,23.35,Adroit Services Ltd,101939,24/07/2014,10205156
INSERTED DETAIL,Capital Programme ,Bathroom Modifications,HIS01,Capital Contract Payments,5000,5018.54,Adroit Services Ltd,101939,24/07/2014,10205156
INSERTED DETAIL,Economy Development & Culture,Economic Development General,ECD00,Development Activities,0450,2300.00,Johnston Publishing Ltd,107468,31/07/2014,10205022
INSERTED DETAIL,Resources & Corporate Governance ,Grounds Maintenance,WGM00,Contract Hire,0220,616.50,TJS Self Drive Rugby,107992,17/07/2014,10204359
INSERTED DETAIL,Resources & Corporate Governance ,Street Cleansing,WSC00,Vehicle Repair and Maintenance,0200,496.33,Scarab Sweepers Ltd,108252,03/07/2014,10203449
INSERTED DETAIL,Resources & Corporate Governance ,Central Telephone Service,TEL00,Telephone Expenses,0371,1031.76,British Telecommunications PLC,108425,24/07/2014,10205165
INSERTED DETAIL,Sustainable Environment,Crematorium,CRM00,Medical Referees Fees,0413,1276.50,Dunchurch Surgery,108687,17/07/2014,10204837
INSERTED DETAIL,Sustainable Environment ,Crime and Disorder Activities,CAD00,Development Activities,0450,20000.00,CSWP Ltd,109679,10/07/2014,10204387
INSERTED DETAIL,Sustainable Environment ,Parks,PKS00,R&M External Contractors,0100,576.25,1ST CLASS HYGIENE LTD,110029,03/07/2014,10204052
INSERTED DETAIL,Resources & Corporate Governance ,Grounds Maintenance,WGM00,Materials,0303,510.20,Boughton Loam Limited,110360,03/07/2014,10203764
INSERTED DETAIL,Resources & Corporate Governance ,Garage Internal,WVR01,Materials,0303,21320.00,Watson Petroleum,110361,10/07/2014,10204288
INSERTED DETAIL,Resources & Corporate Governance ,Garage Internal,WVR01,Materials,0303,18799.16,Watson Petroleum,110361,17/07/2014,10204692
INSERTED DETAIL,Resources & Corporate Governance ,Garage Internal,WVR01,Materials,0303,2444.90,Watson Petroleum,110361,17/07/2014,10204693
INSERTED DETAIL,Economy Development & Culture,Grants and Subscriptions,LGS00,Grants To Voluntary Organisations,0720,1000.00,Rugby Swimming Club,110565,31/07/2014,10205541
INSERTED DETAIL,Resources & Corporate Governance ,Warwickshire On Line Partnership,JCC10,Payments to Other Local Authorities,0710,1013.00,Warwick District Council,111228,10/07/2014,10204435
INSERTED DETAIL,Economy Development & Culture,Economic Development General,ECD00,Contract Catering,0330,540.00,The Chefs Kitchen (UK) Limited,111682,17/07/2014,10204655
INSERTED DETAIL,Housing Revenue Account ,Unplanned Maintenance and Repair,UMR00,R&M External Contractors,0100,696.00,Dampco,111839,17/07/2014,10202499
INSERTED DETAIL,Housing Revenue Account ,Unplanned Maintenance and Repair,UMR00,R&M External Contractors,0100,884.00,Dampco,111839,17/07/2014,10202500
INSERTED DETAIL,Housing Revenue Account ,Unplanned Maintenance and Repair,UMR00,R&M External Contractors,0100,1557.00,Dampco,111839,10/07/2014,10203261
INSERTED DETAIL,Housing Revenue Account ,Unplanned Maintenance and Repair,UMR00,R&M External Contractors,0100,500.00,Dampco,111839,17/07/2014,10203726
INSERTED DETAIL,Resources & Corporate Governance ,Grounds Maintenance,WGM00,External Contractor & Operator,0742,5548.14,Mark Smithers,112612,03/07/2014,10204175
INSERTED DETAIL,Resources & Corporate Governance ,Grounds Maintenance,WGM00,External Contractor & Operator,0742,590.00,Mark Smithers,112612,10/07/2014,10204176
INSERTED DETAIL,Resources & Corporate Governance ,Maintenance of Customer Services Systems,CIS21,Software Maintenance,0374,1850.00,Civica UK Ltd,112724,10/07/2014,10202345
INSERTED DETAIL,Resources & Corporate Governance ,Maintenance of Customer Services Systems,CIS21,Software Maintenance,0374,-1850.00,Civica UK Ltd,112724,10/07/2014,10204483
INSERTED DETAIL,Capital Programme ,Open Revenues Data Cleansing,OPR01,Capital Contract Payments,5000,875.00,Civica UK Ltd,112724,24/07/2014,10205118
INSERTED DETAIL,Resources & Corporate Governance ,Trade Waste Collection,WWC01,Agency Staff,0003,661.68,Extra Personnel Limited,112996,03/07/2014,10204218
INSERTED DETAIL,Resources & Corporate Governance ,Domestic Waste Collection,WWC00,Agency Staff,0003,891.52,Extra Personnel Limited,112996,17/07/2014,10204607
INSERTED DETAIL,Resources & Corporate Governance ,Domestic Waste Collection,WWC00,Agency Staff,0003,661.68,Extra Personnel Limited,112996,17/07/2014,10204881
INSERTED DETAIL,Resources & Corporate Governance ,Domestic Waste Collection,WWC00,Agency Staff,0003,766.16,Extra Personnel Limited,112996,31/07/2014,10205188
INSERTED DETAIL,Resources & Corporate Governance ,Legal Services,DEM20,Ref. Books Journals & Magazines,0353,612.75,Lexis Nexis Butterworths,114132,10/07/2014,10204442
INSERTED DETAIL,Sustainable Environment ,Cemeteries General,CEM00,Purchases for Resale,0305,714.00,Streetmaster (South Wales) Ltd,114898,24/07/2014,10205007
INSERTED DETAIL,Economy Development & Culture,Grants and Subscriptions,LGS00,Grants To Voluntary Organisations,0720,790.00,Caldecott Park Bowling Club,114925,31/07/2014,10205512
INSERTED DETAIL,Sustainable Environment ,Parks,PKS00,Materials,0303,430.00,T H White Ltd,116311,17/07/2014,10204404
INSERTED DETAIL,Resources & Corporate Governance ,Grounds Maintenance,WGM00,Contract Hire,0220,700.00,T H White Ltd,116311,17/07/2014,10204416
INSERTED DETAIL,Capital Programme ,Crematorium Project,BUR04,Capital Contract Payments,5000,5200.00,The Columbaria Company,116732,24/07/2014,10204605
INSERTED DETAIL,Economy Development & Culture,Economic Development General,ECD00,Development Activities,0450,2221.00,Hi-Lite Electrical Ltd,118814,31/07/2014,10205496
INSERTED DETAIL,Resources & Corporate Governance,Corporate Property Central Utilities,CPA02,Electricity,0130,6694.64,Southern Electric,118976,31/07/2014,10204651
INSERTED DETAIL,Resources & Corporate Governance ,WSU Depot,WDP00,Electricity,0130,4845.22,Southern Electric,118976,31/07/2014,10204651
INSERTED DETAIL,Resources & Corporate Governance,Corporate Property Central Utilities,CPA02,Electricity,0130,8433.89,Southern Electric,118976,31/07/2014,10204833
INSERTED DETAIL,Sustainable Environment,Crematorium,CRM00,Electricity,0130,838.18,Southern Electric,118976,31/07/2014,10204833
INSERTED DETAIL,Resources & Corporate Governance ,Street Cleansing,WSC00,Agency Staff,0003,448.56,G Staff,120173,03/07/2014,10203466
INSERTED DETAIL,Resources & Corporate Governance ,Domestic Waste Collection,WWC00,Agency Staff,0003,577.83,G Staff,120173,03/07/2014,10203466
INSERTED DETAIL,Resources & Corporate Governance ,Toilet Cleaning,WBC01,Agency Staff,0003,100.80,G Staff,120173,03/07/2014,10204075
INSERTED DETAIL,Resources & Corporate Governance ,Street Cleansing,WSC00,Agency Staff,0003,70.56,G Staff,120173,03/07/2014,10204075
INSERTED DETAIL,Resources & Corporate Governance ,Domestic Waste Collection,WWC00,Agency Staff,0003,540.60,G Staff,120173,03/07/2014,10204075
INSERTED DETAIL,Resources & Corporate Governance ,Toilet Cleaning,WBC01,Agency Staff,0003,748.60,G Staff,120173,17/07/2014,10204602
INSERTED DETAIL,Resources & Corporate Governance ,Street Cleansing,WSC00,Agency Staff,0003,372.96,G Staff,120173,17/07/2014,10204602
INSERTED DETAIL,Resources & Corporate Governance ,Domestic Waste Collection,WWC00,Agency Staff,0003,764.16,G Staff,120173,17/07/2014,10204602
INSERTED DETAIL,Resources & Corporate Governance ,Trade Waste Collection,WWC01,Agency Staff,0003,124.80,G Staff,120173,17/07/2014,10204602
INSERTED DETAIL,Resources & Corporate Governance ,Toilet Cleaning,WBC01,Agency Staff,0003,748.60,G Staff,120173,17/07/2014,10204822
INSERTED DETAIL,Resources & Corporate Governance,Housing Maintenance,WHM00,Agency Staff,0003,62.10,G Staff,120173,17/07/2014,10204822
INSERTED DETAIL,Resources & Corporate Governance ,Street Cleansing,WSC00,Agency Staff,0003,372.96,G Staff,120173,17/07/2014,10204822
INSERTED DETAIL,Resources & Corporate Governance ,Domestic Waste Collection,WWC00,Agency Staff,0003,823.95,G Staff,120173,17/07/2014,10204822
INSERTED DETAIL,Resources & Corporate Governance ,Toilet Cleaning,WBC01,Agency Staff,0003,647.80,G Staff,120173,24/07/2014,10205084
INSERTED DETAIL,Resources & Corporate Governance ,Street Cleansing,WSC00,Agency Staff,0003,345.96,G Staff,120173,24/07/2014,10205084
INSERTED DETAIL,Resources & Corporate Governance ,Domestic Waste Collection,WWC00,Agency Staff,0003,892.41,G Staff,120173,24/07/2014,10205084
INSERTED DETAIL,Resources & Corporate Governance ,Street Cleansing,WSC00,Agency Staff,0003,372.96,G Staff,120173,31/07/2014,10205419
INSERTED DETAIL,Resources & Corporate Governance ,Domestic Waste Collection,WWC00,Agency Staff,0003,1267.92,G Staff,120173,31/07/2014,10205419
INSERTED DETAIL,Sustainable Environment,Regulatory Services,REG00,Vehicle Repair and Maintenance,0200,506.00,Smartpower,121369,10/07/2014,10204082
INSERTED DETAIL,Housing Revenue Account ,Voids & Allocations Team,MAN24,Agency Staff,0003,666.00,Venn Group Recruitment Solutions,121594,03/07/2014,10204128
INSERTED DETAIL,Housing Revenue Account ,Voids & Allocations Team,MAN24,Agency Staff,0003,1106.00,Venn Group Recruitment Solutions,121594,03/07/2014,10204129
INSERTED DETAIL,Housing Revenue Account ,Voids & Allocations Team,MAN24,Agency Staff,0003,607.50,Venn Group Recruitment Solutions,121594,17/07/2014,10204516
INSERTED DETAIL,Housing Revenue Account ,Voids & Allocations Team,MAN24,Agency Staff,0003,1117.48,Venn Group Recruitment Solutions,121594,17/07/2014,10204517
INSERTED DETAIL,Housing Revenue Account ,Voids & Allocations Team,MAN24,Agency Staff,0003,1106.00,Venn Group Recruitment Solutions,121594,24/07/2014,10204743
INSERTED DETAIL,Housing Revenue Account ,Voids & Allocations Team,MAN24,Agency Staff,0003,625.50,Venn Group Recruitment Solutions,121594,24/07/2014,10204744
INSERTED DETAIL,Housing Revenue Account ,Voids & Allocations Team,MAN24,Agency Staff,0003,558.00,Venn Group Recruitment Solutions,121594,24/07/2014,10205141
INSERTED DETAIL,Housing Revenue Account ,Voids & Allocations Team,MAN24,Agency Staff,0003,704.48,Venn Group Recruitment Solutions,121594,24/07/2014,10205143
INSERTED DETAIL,Resources & Corporate Governance ,Maintenance of Customer Services Systems,CIS21,Software Maintenance,0374,7163.00,Northgate Information Solutions UK Ltd,121606,31/07/2014,10205352
INSERTED DETAIL,Resources & Corporate Governance ,Maintenance of Customer Services Systems,CIS21,Software Maintenance,0374,10337.81,Northgate Information Solutions UK Ltd,121606,31/07/2014,10205353
INSERTED DETAIL,Housing Revenue Account ,Supervision and Management General,MAN00,Publicity & Marketing,0377,1260.00,Janus Kreative,121748,17/07/2014,10204661
INSERTED DETAIL,Resources & Corporate Governance ,"Communications, Consultation and Information Team",BTR20,Publicity & Marketing,0377,500.00,Janus Kreative,121748,17/07/2014,10205006
INSERTED DETAIL,Housing Revenue Account ,Maintenance of Open Spaces,MOS00,External Contractor & Operator,0742,1096.10,Brinklow Quarry,122921,17/07/2014,10204400
INSERTED DETAIL,Resources & Corporate Governance,Housing Maintenance,WHM00,External Contractor & Operator,0742,235.58,Brinklow Quarry,122921,17/07/2014,10204400
INSERTED DETAIL,Resources & Corporate Governance ,Grounds Maintenance,WGM00,External Contractor & Operator,0742,1252.00,Tayside Amenity Sprayers Limited,122930,17/07/2014,10204702
INSERTED DETAIL,Capital Programme ,Purchase of Vehicles,VHC00,Miscellaneous Capital Expenditure,5020,1950.00,Fueltek Ltd,123134,31/07/2014,10204682
INSERTED DETAIL,Resources & Corporate Governance ,ITC & Support Services,CIS10,Hardware Maintenance,0376,4265.67,Cable & Wireless/T/A Vodafone,123224,10/07/2014,10204520
INSERTED DETAIL,Resources & Corporate Governance ,Central Telephone Service,TEL00,Telephone Expenses,0371,1280.04,Cable & Wireless/T/A Vodafone,123224,10/07/2014,10204521
INSERTED DETAIL,Resources & Corporate Governance ,Domestic Waste Collection,WWC00,Materials,0303,14032.20,SSI Schaefer Ltd,123543,10/07/2014,10204417
INSERTED DETAIL,Economy Development & Culture,Visitor Centre,VSC00,Purchases for Resale,0305,493.92,Emblem Print Products Ltd,124385,10/07/2014,10204597
INSERTED DETAIL,Economy Development & Culture,Building Control Services,BCS00,Subscriptions,0421,1618.80,IHS (Global) Ltd,124552,10/07/2014,10201251
INSERTED DETAIL,Economy Development & Culture,Building Control Services Non-Fee Earning Account,BCS01,Subscriptions,0421,56.80,IHS (Global) Ltd,124552,10/07/2014,10201251
INSERTED DETAIL,Economy Development & Culture,Building Regulation Fee Earning Account,BCS99,Subscriptions,0421,1164.40,IHS (Global) Ltd,124552,10/07/2014,10201251
INSERTED DETAIL,Resources & Corporate Governance,Corporate Property Administration,CPA00,Subscriptions,0421,2840.00,IHS (Global) Ltd,124552,10/07/2014,10201251
INSERTED DETAIL,Sustainable Environment ,Parks,PKS00,Subscriptions,0421,2840.00,IHS (Global) Ltd,124552,10/07/2014,10201251
INSERTED DETAIL,Resources & Corporate Governance ,General Administration,WAD00,Subscriptions,0421,2840.00,IHS (Global) Ltd,124552,10/07/2014,10201251
INSERTED DETAIL,Resources & Corporate Governance ,Grounds Maintenance,WGM00,Training fees,0011,767.50,J Coates HGV Services Ltd,125604,24/07/2014,10204272
INSERTED DETAIL,Resources & Corporate Governance ,Garage Internal,WVR01,Materials,0303,568.28,Shell U.K. Oil Products Limited,125672,17/07/2014,10204225
INSERTED DETAIL,Resources & Corporate Governance ,Garage Internal,WVR01,Materials,0303,656.63,Shell U.K. Oil Products Limited,125672,10/07/2014,10204630
INSERTED DETAIL,Resources & Corporate Governance ,Garage Internal,WVR01,Maintenance of Equipment,0301,496.80,Compressor & Vehicle Lift Services Ltd,126546,24/07/2014,10204139
INSERTED DETAIL,Resources & Corporate Governance,Housing Maintenance,WHM00,Telephone Expenses,0371,1245.00,EE Ltd t/a Orange PCS Limited,127916,17/07/2014,10204700
INSERTED DETAIL,Resources & Corporate Governance ,Street Cleansing,WSC00,Vehicle Repair and Maintenance,0200,531.34,ABS Limited,129026,24/07/2014,10204501
INSERTED DETAIL,Resources & Corporate Governance,Housing Maintenance,WHM00,External Contractor & Operator,0742,550.00,M P Hudson & Son,129334,10/07/2014,10204627
INSERTED DETAIL,Resources & Corporate Governance ,Domestic Waste Collection,WWC00,Materials,0303,435.00,Get it Sorted Limited,129426,31/07/2014,10205335
INSERTED DETAIL,Resources & Corporate Governance ,Electoral Registration,ERG00,External Printing,0352,2221.00,Print.UK.Com,129503,31/07/2014,10205354
INSERTED DETAIL,Sustainable Environment ,Parks,PKS00,External Contractor & Operator,0742,500.00,Complete Weed Control,129556,24/07/2014,10204609
INSERTED DETAIL,Economy Development & Culture,Grants and Subscriptions,LGS00,Grants To Voluntary Organisations,0720,1000.00,Rugby Triathlon Club,129806,31/07/2014,10205513
INSERTED DETAIL,Resources & Corporate Governance ,"Communications, Consultation and Information Team",BTR20,Publicity & Marketing,0377,1542.00,Rugby FM,131249,17/07/2014,10203097
INSERTED DETAIL,Resources & Corporate Governance ,"Communications, Consultation and Information Team",BTR20,Publicity & Marketing,0377,1542.00,Rugby FM,131249,17/07/2014,10204411
INSERTED DETAIL,Sustainable Environment ,Parks,PKS00,External Contractor & Operator,0742,3655.00,I D Welding & Fabrications,131407,03/07/2014,10204094
INSERTED DETAIL,Resources & Corporate Governance ,Grounds Maintenance,WGM00,R&M External Contractors,0100,688.00,I D Welding & Fabrications,131407,17/07/2014,10204604
INSERTED DETAIL,Sustainable Environment ,Parks,PKS00,Maintenance of Equipment,0301,501.57,Sutcliffe Play Ltd,131511,17/07/2014,10205012
INSERTED DETAIL,Economy Development & Culture,Decrim. of Car Parking on street parking,DPE02,Cash Collection,0744,591.84,Jade Security Services Ltd,131711,10/07/2014,10204622
INSERTED DETAIL,Economy Development & Culture,Car Parks General,CPK01,Cash Collection,0744,1068.60,Jade Security Services Ltd,131711,10/07/2014,10204623
INSERTED DETAIL,Housing Revenue Account ,Unplanned Maintenance and Repair,UMR00,R&M External Contractors,0100,2777.76,B & M Babbage & Co Ltd,132035,17/07/2014,10204831
INSERTED DETAIL,Housing Revenue Account ,Unplanned Maintenance and Repair,UMR00,R&M External Contractors,0100,2253.75,Wilson Electrics,132051,03/07/2014,10204152
INSERTED DETAIL,Housing Revenue Account ,Unplanned Maintenance and Repair,UMR00,R&M External Contractors,0100,1525.55,Wilson Electrics,132051,17/07/2014,10204659
INSERTED DETAIL,Housing Revenue Account ,Unplanned Maintenance and Repair,UMR00,R&M External Contractors,0100,587.17,Wilson Electrics,132051,17/07/2014,10205058
INSERTED DETAIL,Housing Revenue Account ,Unplanned Maintenance and Repair,UMR00,R&M External Contractors,0100,734.01,Wilson Electrics,132051,24/07/2014,10205155
INSERTED DETAIL,Economy Development & Culture,Visitor Centre,VSC00,Events Tickets - Standard Rated,1404,869.40,Rugby First Ltd - BID,133176,24/07/2014,10205116
INSERTED DETAIL,Economy Development & Culture,Town Centre CCTV and Management,TVM00,External Contractor & Operator,0742,1543.50,Rugby First Ltd - BID,133176,31/07/2014,10205291
INSERTED DETAIL,Resources & Corporate Governance ,Highways,WHG00,Materials,0303,2551.90,Breedon Aggregates England Limited,133309,10/07/2014,10204207
INSERTED DETAIL,Sustainable Inclusive Communities,Housing Options Team,HOT00,Agency Staff,0003,1121.43,Community Resourcing,133778,03/07/2014,10204130
INSERTED DETAIL,Resources & Corporate Governance,Housing Maintenance,WHM00,Agency Staff,0003,626.04,Community Resourcing,133778,24/07/2014,10204742
INSERTED DETAIL,Resources & Corporate Governance,Housing Maintenance,WHM00,Agency Staff,0003,553.15,Community Resourcing,133778,31/07/2014,10205365
INSERTED DETAIL,Resources & Corporate Governance,Housing Maintenance,WHM00,Agency Staff,0003,563.14,Community Resourcing,133778,31/07/2014,10205366
INSERTED DETAIL,Resources & Corporate Governance,Housing Maintenance,WHM00,Agency Staff,0003,462.55,Community Resourcing,133778,31/07/2014,10205367
INSERTED DETAIL,Housing Revenue Account ,Unplanned Maintenance and Repair,UMR00,R&M External Contractors,0100,196.40,Roy Hankinson Ltd,133885,17/07/2014,10204803
INSERTED DETAIL,Housing Revenue Account ,Repainting Schemes,UMR02,R&M External Contractors,0100,11977.90,Roy Hankinson Ltd,133885,17/07/2014,10204803
INSERTED DETAIL,Resources & Corporate Governance ,Human Resources Centralised Services,RES31,Eye Tests & Glasses Contributions,0015,850.00,Specsavers Optical Superstores,134897,10/07/2014,10204532
INSERTED DETAIL,Resources & Corporate Governance ,Garage Internal,WVR01,Materials,0303,957.20,Brenntag UK Limited,135098,10/07/2014,10204210
INSERTED DETAIL,Sustainable Inclusive Communities,CL Grants,CGS00,Grants To Voluntary Organisations,0720,1500.00,Brownsover Community Association,135180,17/07/2014,10204982
INSERTED DETAIL,Sustainable Inclusive Communities,CL Grants,CGS00,Grants To Voluntary Organisations,0720,3000.00,Brownsover Community Association,135180,17/07/2014,10204983
INSERTED DETAIL,Housing Revenue Account ,Alfred Green Close AP,AGP01,Electricity,0130,-58.44,Southern Electric,135653,31/07/2014,10205167
INSERTED DETAIL,Housing Revenue Account ,Avon Court AP,AGP02,Electricity,0130,551.72,Southern Electric,135653,31/07/2014,10205167
INSERTED DETAIL,Housing Revenue Account ,Dickinson Court AP,AGP03,Electricity,0130,628.65,Southern Electric,135653,31/07/2014,10205167
INSERTED DETAIL,Housing Revenue Account ,Duffy Place AP,AGP04,Electricity,0130,579.35,Southern Electric,135653,31/07/2014,10205167
INSERTED DETAIL,Housing Revenue Account ,Frederick Press Way AP,AGP06,Electricity,0130,1153.34,Southern Electric,135653,31/07/2014,10205167
INSERTED DETAIL,Housing Revenue Account ,Mercer Court AP,AGP09,Electricity,0130,551.44,Southern Electric,135653,31/07/2014,10205167
INSERTED DETAIL,Housing Revenue Account ,Pettiver Crescent I AP,AGP10,Electricity,0130,766.20,Southern Electric,135653,31/07/2014,10205167
INSERTED DETAIL,Housing Revenue Account ,Robotham Close AP,AGP11,Electricity,0130,224.65,Southern Electric,135653,31/07/2014,10205167
INSERTED DETAIL,Housing Revenue Account ,Sun Street/Windsor Street AP,AGP14,Electricity,0130,744.25,Southern Electric,135653,31/07/2014,10205167
INSERTED DETAIL,Housing Revenue Account ,Lesley Souter House AP,AGP16,Electricity,0130,1373.31,Southern Electric,135653,31/07/2014,10205167
INSERTED DETAIL,Housing Revenue Account ,Edward Court AP,AGP19,Electricity,0130,728.69,Southern Electric,135653,31/07/2014,10205167
INSERTED DETAIL,Housing Revenue Account ,Albert Square AP,AGP20,Electricity,0130,1023.24,Southern Electric,135653,31/07/2014,10205167
INSERTED DETAIL,Housing Revenue Account ,Clare Court Site,AGP27,Electricity,0130,122.54,Southern Electric,135653,31/07/2014,10205167
INSERTED DETAIL,Housing Revenue Account ,Bennett Court/Warwick Road AP,AGP38,Electricity,0130,26.98,Southern Electric,135653,31/07/2014,10205167
INSERTED DETAIL,Housing Revenue Account ,Clifton Road AP,AGP41,Electricity,0130,82.39,Southern Electric,135653,31/07/2014,10205167
INSERTED DETAIL,Housing Revenue Account ,Featherbed Lane I AP,AGP45,Electricity,0130,544.11,Southern Electric,135653,31/07/2014,10205167
INSERTED DETAIL,Housing Revenue Account ,Fox Close AP,AGP47,Electricity,0130,115.75,Southern Electric,135653,31/07/2014,10205167
INSERTED DETAIL,Housing Revenue Account ,Jackson Road I AP,AGP53,Electricity,0130,59.64,Southern Electric,135653,31/07/2014,10205167
INSERTED DETAIL,Housing Revenue Account ,Lever Road I AP,AGP57,Electricity,0130,430.21,Southern Electric,135653,31/07/2014,10205167
INSERTED DETAIL,Housing Revenue Account ,The Kent AP,AGP67,Electricity,0130,104.89,Southern Electric,135653,31/07/2014,10205167
INSERTED DETAIL,Housing Revenue Account ,Victoria Street/Lawford Road AP,AGP68,Electricity,0130,37.74,Southern Electric,135653,31/07/2014,10205167
INSERTED DETAIL,Housing Revenue Account ,Pennington Street/Round Street AP,AGP72,Electricity,0130,374.32,Southern Electric,135653,31/07/2014,10205167
INSERTED DETAIL,Housing Revenue Account ,Control Centre CCTV,CCE01,Electricity,0130,2004.71,Southern Electric,135653,31/07/2014,10205167
INSERTED DETAIL,Housing Revenue Account ,Supervision and Management General,MAN00,Electricity,0130,176.03,Southern Electric,135653,31/07/2014,10205167
INSERTED DETAIL,Housing Revenue Account ,Multi-Storey Flats,MSF00,Electricity,0130,7093.59,Southern Electric,135653,31/07/2014,10205167
INSERTED DETAIL,Sustainable Inclusive Communities,Woodside Park,TVR00,Electricity,0130,3257.88,Southern Electric,135653,31/07/2014,10205167
INSERTED DETAIL,Sustainable Inclusive Communities,Housing Strategy & Enabling,HSE00,Agency Staff,0003,1066.00,Morgan Hunt UK Ltd,136143,10/07/2014,10204492
INSERTED DETAIL,Sustainable Inclusive Communities,Housing Options Team,HOT00,Agency Staff,0003,1105.00,Morgan Hunt UK Ltd,136143,24/07/2014,10204650
INSERTED DETAIL,Sustainable Inclusive Communities,Housing Options Team,HOT00,Agency Staff,0003,851.50,Morgan Hunt UK Ltd,136143,24/07/2014,10205055
INSERTED DETAIL,Capital Programme ,Disabled Adaptations,HCR01,Capital Contract Payments,5000,750.00,Multicare,136662,24/07/2014,10205153
INSERTED DETAIL,Resources & Corporate Governance ,Domestic Waste Collection,WWC00,Vehicle Repair and Maintenance,0200,-509.84,Heil Farid European Company Ltd,137390,24/07/2014,10204734
INSERTED DETAIL,Resources & Corporate Governance ,Domestic Waste Collection,WWC00,Vehicle Repair and Maintenance,0200,2706.68,Heil Farid European Company Ltd,137390,24/07/2014,10205024
INSERTED DETAIL,Economy Development & Culture,Grants and Subscriptions,LGS00,Grants To Voluntary Organisations,0720,1000.00,The Bradby Club,138171,31/07/2014,10205542
INSERTED DETAIL,Sustainable Inclusive Communities,CL Grants,CGS00,Grants To Voluntary Organisations,0720,55000.00,Bedworth Rugby & Nuneaton CAB,139552,24/07/2014,10205287
INSERTED DETAIL,Housing Revenue Account ,Unplanned Maintenance and Repair,UMR00,R&M External Contractors,0100,190.00,Rider Levett Bucknall UK Ltd,139918,31/07/2014,10205502
INSERTED DETAIL,Housing Revenue Account ,Asbestos Surveys,UMR05,R&M External Contractors,0100,1265.00,Rider Levett Bucknall UK Ltd,139918,31/07/2014,10205502
INSERTED DETAIL,Housing Revenue Account ,Repairs and Maintenance - Void works,UMR09,R&M External Contractors,0100,130.00,Rider Levett Bucknall UK Ltd,139918,31/07/2014,10205502
INSERTED DETAIL,Capital Programme ,Bathroom Modifications,HIS01,Capital Contract Payments,5000,260.00,Rider Levett Bucknall UK Ltd,139918,31/07/2014,10205502
INSERTED DETAIL,Capital Programme ,Housing Window Replacement,HWR00,Capital Contract Payments,5000,520.00,Rider Levett Bucknall UK Ltd,139918,31/07/2014,10205502
INSERTED DETAIL,Housing Revenue Account ,Asbestos Surveys,UMR05,R&M External Contractors,0100,4680.00,Rider Levett Bucknall UK Ltd,139918,31/07/2014,10205503
INSERTED DETAIL,Capital Programme ,Electric to Gas Conversions,HIM04,Capital Contract Payments,5000,130.00,Rider Levett Bucknall UK Ltd,139918,31/07/2014,10205503
INSERTED DETAIL,Capital Programme ,Bathroom Modifications,HIS01,Capital Contract Payments,5000,2210.00,Rider Levett Bucknall UK Ltd,139918,31/07/2014,10205503
INSERTED DETAIL,Capital Programme ,Housing Window Replacement,HWR00,Capital Contract Payments,5000,2210.00,Rider Levett Bucknall UK Ltd,139918,31/07/2014,10205503
INSERTED DETAIL,Economy Development & Culture,Planning General/Income,PLN00,Consultancy Costs,0740,1500.00,P Rhodes,140076,24/07/2014,10205222
INSERTED DETAIL,Resources & Corporate Governance ,Grounds Maintenance,WGM00,External Contractor & Operator,0742,460.00,D J Whitlock Plant Hire,140156,24/07/2014,10205077
INSERTED DETAIL,Resources & Corporate Governance ,Grounds Maintenance,WGM00,External Contractor & Operator,0742,1280.00,D J Whitlock Plant Hire,140156,31/07/2014,10205078
INSERTED DETAIL,Resources & Corporate Governance ,Grounds Maintenance,WGM00,External Contractor & Operator,0742,1280.00,D J Whitlock Plant Hire,140156,24/07/2014,10205079
INSERTED DETAIL,Resources & Corporate Governance ,Grounds Maintenance,WGM00,External Contractor & Operator,0742,1280.00,D J Whitlock Plant Hire,140156,24/07/2014,10205080
INSERTED DETAIL,Resources & Corporate Governance ,Grounds Maintenance,WGM00,External Contractor & Operator,0742,1280.00,D J Whitlock Plant Hire,140156,24/07/2014,10205081
INSERTED DETAIL,Resources & Corporate Governance ,"Communications, Consultation and Information Team",BTR20,Publicity & Marketing,0377,2174.73,Siteimprove Ltd,140753,03/07/2014,10204157
INSERTED DETAIL,Housing Revenue Account ,Unplanned Maintenance and Repair,UMR00,R&M External Contractors,0100,737.61,Elite Sweep Service,141080,17/07/2014,10204714
INSERTED DETAIL,Resources & Corporate Governance ,ITC & Support Services,CIS10,Telephone Expenses,0371,708.00,Zen Internet Ltd,141612,31/07/2014,10205250
INSERTED DETAIL,Sustainable Environment,Crematorium,CRM00,Telephone Expenses,0371,447.44,Zen Internet Ltd,141612,31/07/2014,10205251
INSERTED DETAIL,Capital Programme ,Crematorium Project,BUR04,IT Capital Expenditure,5025,1051.77,Zen Internet Ltd,141612,31/07/2014,10205251
INSERTED DETAIL,Sustainable Environment ,East European Violence Project,CAD32,Development Activities,0450,490.00,The Professional Promotion Co Ltd,144136,03/07/2014,10204072
INSERTED DETAIL,Sustainable Environment ,Burglary,CAD03,Development Activities,0450,6100.00,The Professional Promotion Co Ltd,144136,10/07/2014,10204224
INSERTED DETAIL,Resources & Corporate Governance ,Land Charges,LCH00,External Legal Costs,0741,1726.99,Local Government Association,144471,10/07/2014,10204550
INSERTED DETAIL,Housing Revenue Account ,Control Centre CCTV,CCE01,External Contractor & Operator,0742,15574.92,Securitas Security Personnel Ltd,145079,03/07/2014,10204166
INSERTED DETAIL,Housing Revenue Account ,Control Centre CCTV,CCE01,External Contractor & Operator,0742,15574.92,Securitas Security Personnel Ltd,145079,31/07/2014,10205355
INSERTED DETAIL,Sustainable Inclusive Communities,Housing Options Team,HOT00,Agency Staff,0003,3000.00,James Andrews Recruitment Solutions Ltd,145100,17/07/2014,10204548
INSERTED DETAIL,Resources & Corporate Governance ,Domestic Waste Collection,WWC00,Materials,0303,1060.00,Odour & Dust Solutions Limited,145114,31/07/2014,10205122
INSERTED DETAIL,Sustainable Inclusive Communities,CL Grants,CGS00,Grants To Voluntary Organisations,0720,15000.00,Rugby Credit Union,145332,31/07/2014,10205286
INSERTED DETAIL,Resources & Corporate Governance ,Grounds Maintenance,WGM00,Agency Staff,0003,330.40,Blue Arrow Limited,145492,03/07/2014,10203969
INSERTED DETAIL,Resources & Corporate Governance,Housing Maintenance,WHM00,Agency Staff,0003,1955.33,Blue Arrow Limited,145492,03/07/2014,10203969
INSERTED DETAIL,Resources & Corporate Governance ,Street Cleansing,WSC00,Agency Staff,0003,723.14,Blue Arrow Limited,145492,03/07/2014,10203969
INSERTED DETAIL,Resources & Corporate Governance ,Domestic Waste Collection,WWC00,Agency Staff,0003,2373.01,Blue Arrow Limited,145492,03/07/2014,10203969
INSERTED DETAIL,Resources & Corporate Governance ,Grounds Maintenance,WGM00,Agency Staff,0003,330.40,Blue Arrow Limited,145492,10/07/2014,10204289
INSERTED DETAIL,Resources & Corporate Governance,Housing Maintenance,WHM00,Agency Staff,0003,2070.53,Blue Arrow Limited,145492,10/07/2014,10204289
INSERTED DETAIL,Resources & Corporate Governance ,Street Cleansing,WSC00,Agency Staff,0003,377.77,Blue Arrow Limited,145492,10/07/2014,10204289
INSERTED DETAIL,Resources & Corporate Governance ,Domestic Waste Collection,WWC00,Agency Staff,0003,2540.66,Blue Arrow Limited,145492,10/07/2014,10204289
INSERTED DETAIL,Resources & Corporate Governance,Housing Maintenance,WHM00,Agency Staff,0003,2012.92,Blue Arrow Limited,145492,17/07/2014,10204671
INSERTED DETAIL,Resources & Corporate Governance ,Street Cleansing,WSC00,Agency Staff,0003,650.69,Blue Arrow Limited,145492,17/07/2014,10204671
INSERTED DETAIL,Resources & Corporate Governance ,Domestic Waste Collection,WWC00,Agency Staff,0003,2016.37,Blue Arrow Limited,145492,17/07/2014,10204671
INSERTED DETAIL,Resources & Corporate Governance,Housing Maintenance,WHM00,Agency Staff,0003,1944.51,Blue Arrow Limited,145492,17/07/2014,10204814
INSERTED DETAIL,Resources & Corporate Governance ,Street Cleansing,WSC00,Agency Staff,0003,923.14,Blue Arrow Limited,145492,17/07/2014,10204814
INSERTED DETAIL,Resources & Corporate Governance ,Domestic Waste Collection,WWC00,Agency Staff,0003,1948.62,Blue Arrow Limited,145492,17/07/2014,10204814
INSERTED DETAIL,Resources & Corporate Governance,Housing Maintenance,WHM00,Agency Staff,0003,1944.13,Blue Arrow Limited,145492,24/07/2014,10205131
INSERTED DETAIL,Resources & Corporate Governance ,Street Cleansing,WSC00,Agency Staff,0003,678.98,Blue Arrow Limited,145492,24/07/2014,10205131
INSERTED DETAIL,Resources & Corporate Governance ,Domestic Waste Collection,WWC00,Agency Staff,0003,1927.95,Blue Arrow Limited,145492,24/07/2014,10205131
INSERTED DETAIL,Resources & Corporate Governance,Housing Maintenance,WHM00,Agency Staff,0003,1817.66,Blue Arrow Limited,145492,31/07/2014,10205449
INSERTED DETAIL,Resources & Corporate Governance ,Street Cleansing,WSC00,Agency Staff,0003,183.34,Blue Arrow Limited,145492,31/07/2014,10205449
INSERTED DETAIL,Resources & Corporate Governance ,Domestic Waste Collection,WWC00,Agency Staff,0003,2546.77,Blue Arrow Limited,145492,31/07/2014,10205449
INSERTED DETAIL,Resources & Corporate Governance ,Trade Waste Collection,WWC01,Agency Staff,0003,509.55,Blue Arrow Limited,145492,31/07/2014,10205449
INSERTED DETAIL,Resources & Corporate Governance ,General Financial Services,GFS00,External Contractor & Operator,0742,3098.00,Grant Thornton UK LLP,145501,10/07/2014,10204422
INSERTED DETAIL,Housing Revenue Account ,Supervision and Management General,MAN00,Publicity & Marketing,0377,1076.19,Impress Print,145574,17/07/2014,10204721
INSERTED DETAIL,Resources & Corporate Governance ,Highways,WHG00,Materials,0303,1098.78,Midland Rock Leicester Ltd,145830,10/07/2014,10203881
INSERTED DETAIL,Resources & Corporate Governance ,Highways,WHG00,Materials,0303,506.76,Midland Rock Leicester Ltd,145830,03/07/2014,10204186
INSERTED DETAIL,Economy Development & Culture,Street Furniture,HIG01,External Contractor & Operator,0742,956.81,Midland Rock Leicester Ltd,145830,31/07/2014,10205459
INSERTED DETAIL,Resources & Corporate Governance ,Legal Services,DEM20,External Legal Costs,0741,500.00,HMCTS,145933,31/07/2014,10205495
INSERTED DETAIL,Capital Programme ,Vehicle Workshop Extension,VWE00,Capital Contract Payments,5000,553.00,Midland Vehicle Components Ltd,146025,24/07/2014,10204384
INSERTED DETAIL,Economy Development & Culture,Grants and Subscriptions,LGS00,Grants To Voluntary Organisations,0720,1000.00,Rugby & East Warwickshire Hockey Club,146075,31/07/2014,10205514
INSERTED DETAIL,Capital Programme ,Open Spaces Refurbishment,LEI08,Capital Contract Payments,5000,6505.00,Larkin Engineering Enterprises LtdT/A Larkin Street Products,146442,17/07/2014,10204885
INSERTED DETAIL,Economy Development & Culture,Grants and Subscriptions,LGS00,Grants To Voluntary Organisations,0720,1000.00,Bilton Evangelical Church,146457,24/07/2014,10205288
INSERTED DETAIL,Economy Development & Culture,Art Gallery and Museum,AGM00,Telephone Expenses,0371,2241.30,Virgin Media Business Ltd,146605,17/07/2014,10203631
INSERTED DETAIL,Economy Development & Culture,Visitor Centre,VSC00,Telephone Expenses,0371,2241.29,Virgin Media Business Ltd,146605,17/07/2014,10203631
INSERTED DETAIL,Resources & Corporate Governance ,WSU Depot,WDP00,Messing Facilities,0332,421.48,Elite Healthcare Services Ltd,146607,03/07/2014,10203966
INSERTED DETAIL,Sustainable Environment ,Parks,PKS00,R&M External Contractors,0100,4530.75,UVS Sign & Design Ltd,146676,10/07/2014,10204397
INSERTED DETAIL,Resources & Corporate Governance,Housing Maintenance,WHM00,External Contractor & Operator,0742,553.00,Mick Brown Plastering,146699,03/07/2014,10203700
INSERTED DETAIL,Resources & Corporate Governance,Housing Maintenance,WHM00,External Contractor & Operator,0742,3137.00,Mick Brown Plastering,146699,03/07/2014,10203706
INSERTED DETAIL,Resources & Corporate Governance,Housing Maintenance,WHM00,External Contractor & Operator,0742,507.00,Mick Brown Plastering,146699,03/07/2014,10203714
INSERTED DETAIL,Resources & Corporate Governance,Housing Maintenance,WHM00,External Contractor & Operator,0742,595.00,Mick Brown Plastering,146699,24/07/2014,10205263
INSERTED DETAIL,Resources & Corporate Governance,Housing Maintenance,WHM00,External Contractor & Operator,0742,2850.00,Mick Brown Plastering,146699,31/07/2014,10205264
INSERTED DETAIL,Resources & Corporate Governance,Housing Maintenance,WHM00,External Contractor & Operator,0742,640.00,Mick Brown Plastering,146699,31/07/2014,10205315
INSERTED DETAIL,Resources & Corporate Governance ,Retired Employees,RET00,Employers' Superannuation Contribution,0002,41500.00,WCC Pension Fund,146914,10/07/2014,10204481
INSERTED DETAIL,Resources & Corporate Governance ,Retired Employees,RET00,Additional Pension Payments,0014,11396.33,WCC Pension Fund,146914,10/07/2014,10204564
INSERTED DETAIL,Resources & Corporate Governance ,Retired Employees,RET00,Additional Pension Payments,0014,11396.33,WCC Pension Fund,146914,10/07/2014,10204565
INSERTED DETAIL,Resources & Corporate Governance ,Retired Employees,RET00,Additional Pension Payments,0014,550.00,WCC Pension Fund,146914,31/07/2014,10205527
INSERTED DETAIL,Economy Development & Culture,Building Control Services,BCS00,Postage & Distribution,0370,0.49,TNT Post Midlands Ltd,146983,03/07/2014,10200849
INSERTED DETAIL,Economy Development & Culture,Building Control Services Non-Fee Earning Account,BCS01,Postage & Distribution,0370,0.49,TNT Post Midlands Ltd,146983,03/07/2014,10200849
INSERTED DETAIL,Economy Development & Culture,Building Regulation Fee Earning Account,BCS99,Postage & Distribution,0370,8.91,TNT Post Midlands Ltd,146983,03/07/2014,10200849
INSERTED DETAIL,Resources & Corporate Governance,Central Business Support Services,CSS15,Postage & Distribution,0370,1101.82,TNT Post Midlands Ltd,146983,03/07/2014,10200849
INSERTED DETAIL,Resources & Corporate Governance ,Council Tax and NNDR Collection,CTX01,Postage & Distribution,0370,177.14,TNT Post Midlands Ltd,146983,03/07/2014,10200849
INSERTED DETAIL,Resources & Corporate Governance ,Electoral Registration,ERG00,Postage & Distribution,0370,117.31,TNT Post Midlands Ltd,146983,03/07/2014,10200849
INSERTED DETAIL,Sustainable Inclusive Communities,Housing Benefit Administration,HBA00,Postage & Distribution,0370,77.89,TNT Post Midlands Ltd,146983,03/07/2014,10200849
INSERTED DETAIL,Housing Revenue Account ,Supervision and Management General,MAN00,Postage & Distribution,0370,26.03,TNT Post Midlands Ltd,146983,03/07/2014,10200849
INSERTED DETAIL,Resources & Corporate Governance ,General Administration,WAD00,Postage & Distribution,0370,5.75,TNT Post Midlands Ltd,146983,03/07/2014,10200849
INSERTED DETAIL,Resources & Corporate Governance,Central Business Support Services,CSS15,Postage & Distribution,0370,1368.16,TNT Post Midlands Ltd,146983,03/07/2014,10202837
INSERTED DETAIL,Economy Development & Culture,Building Control Services,BCS00,Postage & Distribution,0370,0.77,TNT Post Midlands Ltd,146983,03/07/2014,10203798
INSERTED DETAIL,Economy Development & Culture,Building Control Services Non-Fee Earning Account,BCS01,Postage & Distribution,0370,0.77,TNT Post Midlands Ltd,146983,03/07/2014,10203798
INSERTED DETAIL,Economy Development & Culture,Building Regulation Fee Earning Account,BCS99,Postage & Distribution,0370,13.95,TNT Post Midlands Ltd,146983,03/07/2014,10203798
INSERTED DETAIL,Resources & Corporate Governance,Central Business Support Services,CSS15,Postage & Distribution,0370,60.22,TNT Post Midlands Ltd,146983,03/07/2014,10203798
INSERTED DETAIL,Resources & Corporate Governance ,Council Tax and NNDR Collection,CTX01,Postage & Distribution,0370,254.27,TNT Post Midlands Ltd,146983,03/07/2014,10203798
INSERTED DETAIL,Resources & Corporate Governance ,Electoral Registration,ERG00,Postage & Distribution,0370,30.59,TNT Post Midlands Ltd,146983,03/07/2014,10203798
INSERTED DETAIL,Sustainable Inclusive Communities,Housing Benefit Administration,HBA00,Postage & Distribution,0370,170.05,TNT Post Midlands Ltd,146983,03/07/2014,10203798
INSERTED DETAIL,Housing Revenue Account ,Supervision and Management General,MAN00,Postage & Distribution,0370,15.49,TNT Post Midlands Ltd,146983,03/07/2014,10203798
INSERTED DETAIL,Resources & Corporate Governance ,General Administration,WAD00,Postage & Distribution,0370,7.68,TNT Post Midlands Ltd,146983,03/07/2014,10203798
INSERTED DETAIL,Resources & Corporate Governance,Central Business Support Services,CSS15,Postage & Distribution,0370,556.43,TNT Post Midlands Ltd,146983,03/07/2014,10204145
INSERTED DETAIL,Resources & Corporate Governance,Central Business Support Services,CSS15,Postage & Distribution,0370,-1081.42,TNT Post Midlands Ltd,146983,03/07/2014,10204150
INSERTED DETAIL,Resources & Corporate Governance,Housing Maintenance,WHM00,External Contractor & Operator,0742,3005.58,Intelligent Disabled Solutions Ltd,147081,17/07/2014,10204739
INSERTED DETAIL,Resources & Corporate Governance,Housing Maintenance,WHM00,External Contractor & Operator,0742,2941.02,Intelligent Disabled Solutions Ltd,147081,24/07/2014,10204740
INSERTED DETAIL,Resources & Corporate Governance,Housing Maintenance,WHM00,External Contractor & Operator,0742,4094.63,Intelligent Disabled Solutions Ltd,147081,24/07/2014,10205016
INSERTED DETAIL,Resources & Corporate Governance,Housing Maintenance,WHM00,External Contractor & Operator,0742,3343.86,Intelligent Disabled Solutions Ltd,147081,24/07/2014,10205017
INSERTED DETAIL,Resources & Corporate Governance,Housing Maintenance,WHM00,External Contractor & Operator,0742,675.00,K A Cooke Limited,147120,10/07/2014,10204464
INSERTED DETAIL,Resources & Corporate Governance,Housing Maintenance,WHM00,External Contractor & Operator,0742,925.00,K A Cooke Limited,147120,10/07/2014,10204465
INSERTED DETAIL,Resources & Corporate Governance,Housing Maintenance,WHM00,External Contractor & Operator,0742,1550.00,K A Cooke Limited,147120,10/07/2014,10204466
INSERTED DETAIL,Resources & Corporate Governance,Housing Maintenance,WHM00,External Contractor & Operator,0742,2550.00,K A Cooke Limited,147120,10/07/2014,10204467
INSERTED DETAIL,Resources & Corporate Governance,Housing Maintenance,WHM00,External Contractor & Operator,0742,550.00,K A Cooke Limited,147120,10/07/2014,10204468
INSERTED DETAIL,Resources & Corporate Governance,Housing Maintenance,WHM00,External Contractor & Operator,0742,1375.00,K A Cooke Limited,147120,10/07/2014,10204552
INSERTED DETAIL,Resources & Corporate Governance,Housing Maintenance,WHM00,External Contractor & Operator,0742,875.00,K A Cooke Limited,147120,24/07/2014,10205270
INSERTED DETAIL,Resources & Corporate Governance,Housing Maintenance,WHM00,External Contractor & Operator,0742,3550.00,K A Cooke Limited,147120,24/07/2014,10205271
INSERTED DETAIL,Resources & Corporate Governance,Housing Maintenance,WHM00,External Contractor & Operator,0742,4525.00,K A Cooke Limited,147120,31/07/2014,10205317
INSERTED DETAIL,Resources & Corporate Governance,Housing Maintenance,WHM00,External Contractor & Operator,0742,2575.00,K A Cooke Limited,147120,31/07/2014,10205318
INSERTED DETAIL,Resources & Corporate Governance ,ITC & Support Services,CIS10,Software Maintenance,0374,525.00,Sapphire Technologies Ltd,147128,17/07/2014,10204668
INSERTED DETAIL,Resources & Corporate Governance,Housing Maintenance,WHM00,External Contractor & Operator,0742,900.00,James Baxter Haulage Ltd,147159,03/07/2014,10203409
INSERTED DETAIL,Resources & Corporate Governance ,Domestic Waste Collection,WWC00,External Contractor & Operator,0742,1200.00,James Baxter Haulage Ltd,147159,03/07/2014,10203763
INSERTED DETAIL,Resources & Corporate Governance ,Domestic Waste Collection,WWC00,External Contractor & Operator,0742,750.00,James Baxter Haulage Ltd,147159,03/07/2014,10203967
INSERTED DETAIL,Resources & Corporate Governance ,Domestic Waste Collection,WWC00,External Contractor & Operator,0742,600.00,James Baxter Haulage Ltd,147159,10/07/2014,10204364
INSERTED DETAIL,Resources & Corporate Governance ,Domestic Waste Collection,WWC00,External Contractor & Operator,0742,750.00,James Baxter Haulage Ltd,147159,17/07/2014,10204741
INSERTED DETAIL,Resources & Corporate Governance ,Domestic Waste Collection,WWC00,External Contractor & Operator,0742,600.00,James Baxter Haulage Ltd,147159,17/07/2014,10204996
INSERTED DETAIL,Resources & Corporate Governance ,Domestic Waste Collection,WWC00,External Contractor & Operator,0742,1050.00,James Baxter Haulage Ltd,147159,31/07/2014,10205189
INSERTED DETAIL,Resources & Corporate Governance ,Domestic Waste Collection,WWC00,External Contractor & Operator,0742,600.00,James Baxter Haulage Ltd,147159,31/07/2014,10205410
INSERTED DETAIL,Resources & Corporate Governance ,Human Resources Centralised Services,RES31,Training fees,0011,590.00,Globe Training,147192,03/07/2014,10204212
INSERTED DETAIL,Resources & Corporate Governance,Corporate Property R&M,CPA01,R&M External Contractors,0100,1254.00,AirTech Controls Ltd,147262,03/07/2014,10204222
INSERTED DETAIL,Resources & Corporate Governance ,Domestic Waste Collection,WWC00,Contract Hire,0220,550.00,Trash UK Limited,147379,03/07/2014,10204187
INSERTED DETAIL,Resources & Corporate Governance ,Domestic Waste Collection,WWC00,Contract Hire,0220,550.00,Trash UK Limited,147379,10/07/2014,10204498
INSERTED DETAIL,Resources & Corporate Governance ,Domestic Waste Collection,WWC00,Contract Hire,0220,550.00,Trash UK Limited,147379,17/07/2014,10204820
INSERTED DETAIL,Resources & Corporate Governance ,Domestic Waste Collection,WWC00,Contract Hire,0220,550.00,Trash UK Limited,147379,24/07/2014,10205023
INSERTED DETAIL,Resources & Corporate Governance ,"Communications, Consultation and Information Team",BTR20,Publicity & Marketing,0377,2990.00,Leicester Football Club Plc,147389,10/07/2014,10204527
INSERTED DETAIL,Resources & Corporate Governance,Corporate Property R&M,CPA01,R&M External Contractors,0100,928.09,Arden Construction Ltd,147430,24/07/2014,10204403
INSERTED DETAIL,Capital Programme ,Kitchen Modifications,HIK10,Capital Contract Payments,5000,821.10,Rixonway Kitchens Ltd,147446,17/07/2014,10204935
INSERTED DETAIL,Capital Programme ,Disabled Facilities Grant,REN01,Capital Grants,5014,4850.00,Pollards Property Solution,147541,10/07/2014,10204531
INSERTED DETAIL,Capital Programme ,Disabled Facilities Grant,REN01,Capital Grants,5014,4089.99,Pollards Property Solution,147541,17/07/2014,10204717
INSERTED DETAIL,Economy Development & Culture,AGM Education,AGM03,Other Miscellaneous Expenses,0444,1789.25,N A McIntosh,147680,31/07/2014,10205359
INSERTED DETAIL,Sustainable Environment,Bikeability,REG10,Training fees,0011,550.00,Harris School,147690,24/07/2014,10205173
INSERTED DETAIL,Resources & Corporate Governance ,Grounds Maintenance,WGM00,Vehicle Repair and Maintenance,0200,2771.99,Tallis Amos Group Limited,147758,10/07/2014,10204273
INSERTED DETAIL,Capital Programme ,Crematorium Project,BUR04,Capital Contract Payments,5000,21815.46,Currall Lewis & Martin (Construction) Ltd,147769,10/07/2014,10204598
INSERTED DETAIL,Resources & Corporate Governance,Housing Maintenance,WHM00,External Contractor & Operator,0742,506.40,Coventry Garage Doors,147883,17/07/2014,10204828
INSERTED DETAIL,Resources & Corporate Governance ,TREE WORKS,WGM01,New Equipment,0300,266.00,Buxtons Limited,148015,03/07/2014,10203614
INSERTED DETAIL,Resources & Corporate Governance ,TREE WORKS,WGM01,Materials,0303,16.00,Buxtons Limited,148015,03/07/2014,10203614
INSERTED DETAIL,Resources & Corporate Governance ,TREE WORKS,WGM01,Tools,0304,39.58,Buxtons Limited,148015,03/07/2014,10203614
INSERTED DETAIL,Resources & Corporate Governance ,TREE WORKS,WGM01,Personal Protective Clothing,0340,600.00,Buxtons Limited,148015,03/07/2014,10203614
INSERTED DETAIL,Resources & Corporate Governance,Housing Maintenance,WHM00,External Contractor & Operator,0742,502.50,Dean Hudson,148035,10/07/2014,10204451
INSERTED DETAIL,Resources & Corporate Governance,Housing Maintenance,WHM00,External Contractor & Operator,0742,540.00,Dean Hudson,148035,10/07/2014,10204628
INSERTED DETAIL,Resources & Corporate Governance,Housing Maintenance,WHM00,External Contractor & Operator,0742,577.50,Dean Hudson,148035,31/07/2014,10205545
INSERTED DETAIL,Resources & Corporate Governance ,ITC & Support Services,CIS10,Software Maintenance,0374,780.00,NSC Legacydata Solutions Ltd,148083,17/07/2014,10204907
INSERTED DETAIL,Economy Development & Culture,The Benn Hall,BHL00,Recruitment Expenses,0012,39.90,Team Prevent UK Ltd,148151,31/07/2014,10205369
INSERTED DETAIL,Housing Revenue Account ,Control Centre (HRA),CCE00,Recruitment Expenses,0012,39.90,Team Prevent UK Ltd,148151,31/07/2014,10205369
INSERTED DETAIL,Resources & Corporate Governance,Corporate Property Administration,CPA00,Recruitment Expenses,0012,19.95,Team Prevent UK Ltd,148151,31/07/2014,10205369
INSERTED DETAIL,Resources & Corporate Governance,Customer Support Services,CSS00,Recruitment Expenses,0012,19.95,Team Prevent UK Ltd,148151,31/07/2014,10205369
INSERTED DETAIL,Resources & Corporate Governance,Apprenticeship Scheme,CSS25,Recruitment Expenses,0012,19.95,Team Prevent UK Ltd,148151,31/07/2014,10205369
INSERTED DETAIL,Sustainable Environment,Regulatory Services,REG00,Recruitment Expenses,0012,19.95,Team Prevent UK Ltd,148151,31/07/2014,10205369
INSERTED DETAIL,Economy Development & Culture,Visitor Centre,VSC00,Recruitment Expenses,0012,59.85,Team Prevent UK Ltd,148151,31/07/2014,10205369
INSERTED DETAIL,Resources & Corporate Governance ,TREE WORKS,WGM01,Recruitment Expenses,0012,19.95,Team Prevent UK Ltd,148151,31/07/2014,10205369
INSERTED DETAIL,Resources & Corporate Governance ,Caldecott Park Cafe,WGM02,Recruitment Expenses,0012,19.95,Team Prevent UK Ltd,148151,31/07/2014,10205369
INSERTED DETAIL,Resources & Corporate Governance,Housing Maintenance,WHM00,Recruitment Expenses,0012,59.85,Team Prevent UK Ltd,148151,31/07/2014,10205369
INSERTED DETAIL,Resources & Corporate Governance ,Street Cleansing,WSC00,Recruitment Expenses,0012,19.95,Team Prevent UK Ltd,148151,31/07/2014,10205369
INSERTED DETAIL,Resources & Corporate Governance,Corporate Property Administration,CPA00,Employee wellbeing/Other employee expenses,0021,17.50,Team Prevent UK Ltd,148151,31/07/2014,10205369
INSERTED DETAIL,Resources & Corporate Governance,Apprenticeship Scheme,CSS25,Employee wellbeing/Other employee expenses,0021,17.50,Team Prevent UK Ltd,148151,31/07/2014,10205369
INSERTED DETAIL,Sustainable Environment,Regulatory Services,REG00,Employee wellbeing/Other employee expenses,0021,104.00,Team Prevent UK Ltd,148151,31/07/2014,10205369
INSERTED DETAIL,Economy Development & Culture,Visitor Centre,VSC00,Employee wellbeing/Other employee expenses,0021,52.50,Team Prevent UK Ltd,148151,31/07/2014,10205369
INSERTED DETAIL,Resources & Corporate Governance ,Grounds Maintenance,WGM00,Employee wellbeing/Other employee expenses,0021,495.00,Team Prevent UK Ltd,148151,31/07/2014,10205369
INSERTED DETAIL,Resources & Corporate Governance ,TREE WORKS,WGM01,Employee wellbeing/Other employee expenses,0021,267.50,Team Prevent UK Ltd,148151,31/07/2014,10205369
INSERTED DETAIL,Resources & Corporate Governance,Housing Maintenance,WHM00,Employee wellbeing/Other employee expenses,0021,160.00,Team Prevent UK Ltd,148151,31/07/2014,10205369
INSERTED DETAIL,Resources & Corporate Governance ,Street Cleansing,WSC00,Employee wellbeing/Other employee expenses,0021,85.00,Team Prevent UK Ltd,148151,31/07/2014,10205369
INSERTED DETAIL,Resources & Corporate Governance ,Garage Salaries,WVR03,Employee wellbeing/Other employee expenses,0021,120.00,Team Prevent UK Ltd,148151,31/07/2014,10205369
INSERTED DETAIL,Resources & Corporate Governance ,Domestic Waste Collection,WWC00,Employee wellbeing/Other employee expenses,0021,40.00,Team Prevent UK Ltd,148151,31/07/2014,10205369
INSERTED DETAIL,Resources & Corporate Governance ,General Administration,WAD00,Training fees,0011,467.00,Park Hill Training Ltd,148323,24/07/2014,10205014
INSERTED DETAIL,Sustainable Inclusive Communities,CL Grants,CGS00,Grants To Voluntary Organisations,0720,1300.00,Coton Park Residents Association,148431,24/07/2014,10205239
INSERTED DETAIL,Capital Programme ,Woodside Gypsy & Traveller Caravan Site,RNA05,Capital Contract Payments,5000,2425.00,"Gotch, Saunders & Surridge LLP , t/a GSS Architecture",148432,24/07/2014,10204298
INSERTED DETAIL,Economy Development & Culture,Art Gallery and Museum,AGM00,External Contractor & Operator,0742,5250.00,"Gotch, Saunders & Surridge LLP , t/a GSS Architecture",148432,03/07/2014,10204300
INSERTED DETAIL,Capital Programme ,Pettiver Crescent,PCH00,Capital Contract Payments,5000,1599.38,"Gotch, Saunders & Surridge LLP , t/a GSS Architecture",148432,17/07/2014,10204669
INSERTED DETAIL,Capital Programme ,Pettiver Crescent,PCH00,Capital Contract Payments,5000,1599.37,"Gotch, Saunders & Surridge LLP , t/a GSS Architecture",148432,31/07/2014,10205451
INSERTED DETAIL,Resources & Corporate Governance,Housing Maintenance,WHM00,External Contractor & Operator,0742,3035.00,Garforth Scaffolding Ltd,148530,17/07/2014,10200530
INSERTED DETAIL,Resources & Corporate Governance ,IT Procurement,CMP00,IT Capital Expenditure,5025,6530.08,CCS Media Ltd,148725,24/07/2014,10205169
INSERTED DETAIL,Housing Revenue Account ,Gas Heating Systems,UMR01,R&M External Contractors,0100,43791.92,Robert Heath Heating Ltd,148858,03/07/2014,10203994
INSERTED DETAIL,Housing Revenue Account ,Gas Heating Systems,UMR01,R&M External Contractors,0100,45306.92,Robert Heath Heating Ltd,148858,24/07/2014,10204526
INSERTED DETAIL,Housing Revenue Account ,Unplanned Maintenance and Repair,UMR00,R&M External Contractors,0100,781.90,Robert Heath Heating Ltd,148858,10/07/2014,10204572
INSERTED DETAIL,Housing Revenue Account ,Gas Heating Systems,UMR01,R&M External Contractors,0100,201.25,Robert Heath Heating Ltd,148858,10/07/2014,10204572
INSERTED DETAIL,Housing Revenue Account ,Repairs and Maintenance - Void works,UMR09,R&M External Contractors,0100,1156.10,Robert Heath Heating Ltd,148858,10/07/2014,10204572
INSERTED DETAIL,Sustainable Inclusive Communities,Housing Strategy & Enabling,HSE00,Other Agencies,0734,1129.01,Robert Heath Heating Ltd,148858,17/07/2014,10204986
INSERTED DETAIL,Housing Revenue Account ,Unplanned Maintenance and Repair,UMR00,R&M External Contractors,0100,1483.60,Robert Heath Heating Ltd,148858,24/07/2014,10205217
INSERTED DETAIL,Housing Revenue Account ,Gas Heating Systems,UMR01,R&M External Contractors,0100,107.50,Robert Heath Heating Ltd,148858,24/07/2014,10205217
INSERTED DETAIL,Housing Revenue Account ,Repairs and Maintenance - Void works,UMR09,R&M External Contractors,0100,930.60,Robert Heath Heating Ltd,148858,24/07/2014,10205217
INSERTED DETAIL,Capital Programme ,Disabled Adaptations,HCR01,Capital Contract Payments,5000,40.00,Robert Heath Heating Ltd,148858,24/07/2014,10205217
INSERTED DETAIL,Economy Development & Culture,The Benn Hall,BHL00,Purchases for Resale,0305,3958.93,Matthew Clark Wholesale Ltd,148975,10/07/2014,10204398
INSERTED DETAIL,Economy Development & Culture,The Benn Hall,BHL00,Purchases for Resale,0305,1405.14,Matthew Clark Wholesale Ltd,148975,31/07/2014,10205341
INSERTED DETAIL,Resources & Corporate Governance,Housing Maintenance,WHM00,External Contractor & Operator,0742,569.00,D & M Ball Carpets,149023,31/07/2014,10205136
INSERTED DETAIL,Sustainable Environment ,Cemeteries General,CEM00,External Contractor & Operator,0742,1000.00,Woodward Turf Care Ltd,149024,10/07/2014,10204409
INSERTED DETAIL,Housing Revenue Account ,Repairs and Maintenance - Void works,UMR09,R&M External Contractors,0100,600.00,Elite Surveyors Ltd,149107,24/07/2014,10205157
INSERTED DETAIL,Sustainable Inclusive Communities,CL Grants,CGS00,Grants To Voluntary Organisations,0720,500.00,Rugby Fibromyalgia Support Group,149124,17/07/2014,10204981
INSERTED DETAIL,Sustainable Inclusive Communities,CL Grants,CGS00,Grants To Voluntary Organisations,0720,1198.00,Warwickshire Association for the Blind,149127,17/07/2014,10204984
INSERTED DETAIL,Economy Development & Culture,Visitor Centre,VSC00,Events Tickets - Standard Rated,1404,790.20,Stringfest Events UK,149136,24/07/2014,10205215
INSERTED DETAIL,Resources & Corporate Governance ,Town Hall,OFF00,Contract Cleaning,0170,4195.83,Superclean Services Wothorpe,149153,24/07/2014,10204160
INSERTED DETAIL,Sustainable Environment ,Parks,PKS00,Contract Cleaning,0170,200.00,Superclean Services Wothorpe,149153,24/07/2014,10204160
INSERTED DETAIL,Resources & Corporate Governance ,WSU Depot,WDP00,Contract Cleaning,0170,395.83,Superclean Services Wothorpe,149153,24/07/2014,10204160
INSERTED DETAIL,Housing Revenue Account ,Sheltered Housing,AGP00,Contract Cleaning,0170,11850.58,Superclean Services Wothorpe,149153,17/07/2014,10204161
INSERTED DETAIL,Sustainable Inclusive Communities,Housing Options Team,HOT00,Contract Cleaning,0170,112.51,Superclean Services Wothorpe,149153,17/07/2014,10204161
INSERTED DETAIL,Housing Revenue Account ,Estate Management,MAN22,Contract Cleaning,0170,2552.47,Superclean Services Wothorpe,149153,17/07/2014,10204161
INSERTED DETAIL,Housing Revenue Account ,Multi-Storey Flats,MSF00,Contract Cleaning,0170,1434.45,Superclean Services Wothorpe,149153,17/07/2014,10204161
INSERTED DETAIL,Housing Revenue Account ,Unplanned Maintenance and Repair,UMR00,R&M External Contractors,0100,285.00,Superclean Services Wothorpe,149153,24/07/2014,10204704
INSERTED DETAIL,Housing Revenue Account ,Repairs and Maintenance - Void works,UMR09,R&M External Contractors,0100,2000.00,Superclean Services Wothorpe,149153,24/07/2014,10204704
INSERTED DETAIL,Housing Revenue Account ,Sheltered Housing,AGP00,Contract Cleaning,0170,11850.58,Superclean Services Wothorpe,149153,31/07/2014,10205530
INSERTED DETAIL,Sustainable Inclusive Communities,Housing Options Team,HOT00,Contract Cleaning,0170,112.51,Superclean Services Wothorpe,149153,31/07/2014,10205530
INSERTED DETAIL,Housing Revenue Account ,Estate Management,MAN22,Contract Cleaning,0170,2552.47,Superclean Services Wothorpe,149153,31/07/2014,10205530
INSERTED DETAIL,Housing Revenue Account ,Multi-Storey Flats,MSF00,Contract Cleaning,0170,1434.45,Superclean Services Wothorpe,149153,31/07/2014,10205530
INSERTED DETAIL,Capital Programme ,Pettiver Crescent,PCH00,Capital Contract Payments,5000,234411.52,Wates Construction Ltd,149267,10/07/2014,10204361
INSERTED DETAIL,Resources & Corporate Governance ,Garage Internal,WVR01,Materials,0303,1127.85,Grenke Leasing Ltd,149293,03/07/2014,10204134
INSERTED DETAIL,Resources & Corporate Governance ,Garage Internal,WVR01,Materials,0303,990.93,Grenke Leasing Ltd,149293,03/07/2014,10204135
INSERTED DETAIL,Resources & Corporate Governance ,Garage Internal,WVR01,Materials,0303,642.80,Tom Tom International BV,149311,17/07/2014,10204729
INSERTED DETAIL,Resources & Corporate Governance,Housing Maintenance,WHM00,External Contractor & Operator,0742,1370.00,CSC Forecourt Services Ltd,149405,17/07/2014,10204830
INSERTED DETAIL,Housing Revenue Account ,Unplanned Maintenance and Repair,UMR00,R&M External Contractors,0100,2868.24,Close Circuit Security Services Ltd,149426,10/07/2014,10204457
INSERTED DETAIL,Housing Revenue Account ,Unplanned Maintenance and Repair,UMR00,R&M External Contractors,0100,218.56,Close Circuit Security Services Ltd,149426,10/07/2014,10204458
INSERTED DETAIL,Capital Programme ,CCTV upgrades,HCE23,Capital Contract Payments,5000,1431.00,Close Circuit Security Services Ltd,149426,10/07/2014,10204458
INSERTED DETAIL,Housing Revenue Account ,Unplanned Maintenance and Repair,UMR00,R&M External Contractors,0100,7139.32,Close Circuit Security Services Ltd,149426,17/07/2014,10204956
INSERTED DETAIL,Housing Revenue Account ,Unplanned Maintenance and Repair,UMR00,R&M External Contractors,0100,2666.66,Close Circuit Security Services Ltd,149426,31/07/2014,10205401
INSERTED DETAIL,Resources & Corporate Governance,Housing Maintenance,WHM00,Vehicle Repair and Maintenance,0200,444.15,CLB Cleanequip Ltd,149464,24/07/2014,10204745
INSERTED DETAIL,Economy Development & Culture,Economic Development General,ECD00,Borough Local Plan,0452,2529.20,ARC4 Ltd,149590,10/07/2014,10202403
INSERTED DETAIL,Resources & Corporate Governance ,Human Resources Centralised Services,RES31,Training fees,0011,1256.00,Art of Brilliance Ltd,149617,10/07/2014,10204584
INSERTED DETAIL,Economy Development & Culture,Visitor Centre,VSC00,Purchases for Resale,0305,418.00,DJH Group LTD Rowena Souvenirs,149632,10/07/2014,10204380
INSERTED DETAIL,Sustainable Environment,Crematorium,CRM00,Organist Fees,0414,962.50,Tracey Daulman,149686,17/07/2014,10204838
INSERTED DETAIL,Capital Programme ,Disabled Facilities Grant,REN01,Capital Grants,5014,4110.00,P C Barry Building Contractors,149694,10/07/2014,10204545
INSERTED DETAIL,Sustainable Environment,Crematorium,CRM00,External Contractor & Operator,0742,4416.00,A A Gibson,149696,17/07/2014,10204649
INSERTED DETAIL,Resources & Corporate Governance ,Human Resources Centralised Services,RES31,Training fees,0011,625.00,CMS Training Ltd,149724,24/07/2014,10204912
INSERTED DETAIL,Resources & Corporate Governance ,TREE WORKS,WGM01,Training fees,0011,810.00,Webb's Training Services,149779,31/07/2014,10204606
INSERTED DETAIL,Resources & Corporate Governance,Housing Maintenance,WHM00,Training fees,0011,607.50,Webb's Training Services,149779,31/07/2014,10204606
INSERTED DETAIL,Resources & Corporate Governance ,Street Cleansing,WSC00,Training fees,0011,202.50,Webb's Training Services,149779,31/07/2014,10204606
INSERTED DETAIL,Sustainable Environment,Regulatory Services,REG00,External Legal Costs,0741,850.00,Mr David Armstrong,149802,03/07/2014,10203095
INSERTED DETAIL,Sustainable Inclusive Communities,Housing Benefit Administration,HBA00,External Legal Costs,0741,1350.00,Mr David Armstrong,149802,24/07/2014,10204104
INSERTED DETAIL,Resources & Corporate Governance,Corporate Property R&M,CPA01,R&M External Contractors,0100,500.00,H2O Utilities Ltd,149819,03/07/2014,10204214
INSERTED DETAIL,Resources & Corporate Governance ,Domestic Waste Collection,WWC00,New Equipment,0300,1355.00,Contact Attachments Ltd,149826,17/07/2014,10204493
INSERTED DETAIL,Resources & Corporate Governance,Housing Maintenance,WHM00,Materials,0303,870.00,The Chandelier & Mirror Company Ltd,149844,03/07/2014,10203885
INSERTED DETAIL,Resources & Corporate Governance ,Highways,WHG00,Materials,0303,1080.00,Ransfords,149855,03/07/2014,10204220
INSERTED DETAIL,Capital Programme ,Purchase of Vehicles,VHC00,Miscellaneous Capital Expenditure,5020,3785.00,Cabsite Portable Building Sales Ltd,149856,03/07/2014,10204074
INSERTED DETAIL,Housing Revenue Account ,Property Maintenance,MAN23,New Equipment,0300,439.20,Anton Industrial Services,149862,17/07/2014,10204601
INSERTED DETAIL,Sustainable Environment ,Domestic Waste Collection/Recycling,REF00,External Contractor & Operator,0742,2109.00,JMC Marketing (Midlands) Limited,149868,17/07/2014,10204582
INSERTED DETAIL,Economy Development & Culture,James St. Multi-storey Car Park,CPK02,New Equipment,0300,3100.00,Pinnacle Response Ltd,149869,17/07/2014,10205001
INSERTED DETAIL,Housing Revenue Account ,Operations,MAN20,New Equipment,0300,500.00,Pinnacle Response Ltd,149869,17/07/2014,10205001
INSERTED DETAIL,Sustainable Environment ,Parks,PKS00,New Equipment,0300,445.00,Pinnacle Response Ltd,149869,17/07/2014,10205001
INSERTED DETAIL,Sustainable Environment,Regulatory Services,REG00,New Equipment,0300,454.00,Pinnacle Response Ltd,149869,17/07/2014,10205001
INSERTED DETAIL,Resources & Corporate Governance ,Corporate Assurance,BTR40,Other Miscellaneous Expenses,0444,500.00,Pinnacle Response Ltd,149869,17/07/2014,10205001
INSERTED DETAIL,Sustainable Inclusive Communities,CL Grants,CGS00,Grants To Voluntary Organisations,0720,1211.00,Rugby Sea Cadets,149870,10/07/2014,10204471
INSERTED DETAIL,Resources & Corporate Governance ,Highways,WHG00,External Contractor & Operator,0742,3096.58,Butyl Products Ltd,149874,17/07/2014,10204886
INSERTED DETAIL,Economy Development & Culture,Economic Development General,ECD00,External Contractor & Operator,0742,600.00,Strategic Perspectives,149876,10/07/2014,10204566
INSERTED DETAIL,Sustainable Inclusive Communities,CL Grants,CGS00,Grants To Voluntary Organisations,0720,1500.00,WCAVA,149883,17/07/2014,10204980
INSERTED DETAIL,Housing Revenue Account ,Property Maintenance,MAN23,Training fees,0011,1499.00,East Midlands Technical Training Ltd,149887,24/07/2014,10205108
INSERTED DETAIL,Housing Revenue Account ,Property Maintenance,MAN23,Training fees,0011,774.00,Euroheat Distributors (HBS) Ltd,149899,31/07/2014,10205350
INSERTED DETAIL,Economy Development & Culture,AGM Exhibitions/Outreach,AGM02,Other Miscellaneous Expenses,0444,787.00,Birmingham Museums Trading Ltd,149909,31/07/2014,10205544
INSERTED DETAIL,Economy Development & Culture,Grants and Subscriptions,LGS00,Grants To Voluntary Organisations,0720,1000.00,Rugby Table Tennis Club,149910,31/07/2014,10205543
detail,Economy Development & Culture,Grants and Subscriptions,LGS00,Grants To Voluntary Organisations,0720,1000.00,Rugby Swimming Club,149911,31/07/2014,10205540
,Resources & Corporate Governance,Domestic Waste Collection,WWC00,Vehicle Running Costs,0201,652.50,Post Office Ltd,,08/07/2014,32752
,Economy Development & Culture,Decrim. of Car Parking on street parking,DPE02,Vehicle Running Costs,0201,652.50,Post Office Ltd,,08/07/2014,32752
,,Balance Sheet,BS,Cov & Warks Pooling Fund,9476,1406994.00,Cov & Warks Pooling Fund,,18/07/2014,32630
,,Balance Sheet,BS,Business Rate Retention Scheme payment,9476,2070453,CLG,,21/07/2014,32639
,,Balance Sheet,BS,Business Rate Retention Scheme payment,9476,414702,WCC County Fund,,21/07/2014,32641
,Resources & Corporate Governance,General Financial Services,GFS00,Payment Card Costs,0445,1146.4,Capita,,23/07/2014,32666
